Workbook

Sheet WA Gas - Sched 162
A1: Avista Utilities | F1: % of Sch 101 Res:
A2: State of Washington | F2: 0.1725
A3: Rate Change Summary - Schedule 162
C4: CCA Costs? | D4: Yes | F4: Yes | H4: Yes | J4: Yes | L4: Yes | N4: Yes | P4: Yes | R4: Yes | T4: Yes | U4: Yes | W4: Yes
C5: CCA Benefits? | D5: Yes | F5: Yes | H5: No | J5: Yes | L5: No | N5: Yes | P5: No | R5: Yes | T5: No | U5: Yes | W5: No
D6: GEN SERVICE | F6: GEN SERVICE | H6: GEN SERVICE | J6: LRG GEN SVC | L6: LRG GEN SVC | N6: LRG GEN SVC | P6: LRG GEN SVC | R6: INTERRUPTIBLE | T6: INTERRUPTIBLE | U6: TRANSPORT | W6: TRANSPORT
A7: Source | C7: TOTAL | D7: SCH. 101 Pre 7/2021 | F7: SCH. 101 Res Fixed/Low Income | H7: SCH. 101 Post 7/2021 | J7: SCH. 111 | L7: SCH. 111 Post 7/21 | N7: SCH. 112, 116 | P7: SCH. 112, 116 Post 7/21 | R7: SCH. 131&132 | T7: SCH. 131/132 Post 7/21 | U7: SCH. 146 | W7: SCH. 146 Post 7/21
A8: SCHEDULE 162 - CCA Costs
A9: Forecast | B9: Total Annual Therms (Subject to Cost) | C9: =SUM(D9:W9) -> 220376850.7 | D9: =IF(D4="Yes",SUM(Forecast!C57:N59),0) -> 133751645.9 | F9: Incl in 101 | H9: Incl in 101 | J9: =IF(J4="Yes",SUM(Forecast!$C$60:$N$61),0) -> 61340851.43 | L9: Incl in 111 | N9: =IF(N4="Yes",SUM(Forecast!$C$62:$N$63),0) -> 137984.555 | P9: Incl in 112, 116 | R9: =IF(R4="Yes",SUM(Forecast!$C$64:$N$64),0) -> 2628936.474 | T9: Incl in 131/132 | U9: =IF(U4="Yes",SUM(Forecast!$C$65:$N$66),0) -> 22517432.38 | W9: Incl in 146
B11: Percentage of Forecasted Load | C11: =SUM(D11:W11) -> 1 | D11: =D9/$C$9 -> 0.6069223943 | J11: =J9/$C$9 -> 0.2783452583 | N11: =N9/$C$9 -> 0.0006261299885 | R11: =R9/$C$9 -> 0.0119292769 | U11: =U9/$C$9 -> 0.1021769406
B13: Costs Through December 2023 | C13: 46022329
B14: Revenue Spread Based on Current Allocation | C14: =SUM(D14:W14) -> 46022329 | D14: =$C$13*D11 -> 27931982.11 | J14: =$C$13*J11 -> 12810097.05 | N14: =$C$13*N11 -> 28815.96033 | R14: =$C$13*R11 -> 549013.1061 | U14: =$C$13*U11 -> 4702420.775
B15: Interest During Amortization Period | D15: =D14/($D$14+$J$14+$N$14+$R$14+$U$14)*'Cost Amtz Calc - Sch 101-146'!$F$27 -> 870711.0955 | J15: =J14/($D$14+$J$14+$N$14+$R$14+$U$14)*'Cost Amtz Calc - Sch 101-146'!$F$27 -> 399323.3848 | N15: =N14/($D$14+$J$14+$N$14+$R$14+$U$14)*'Cost Amtz Calc - Sch 101-146'!$F$27 -> 898.2669504 | R15: =R14/($D$14+$J$14+$N$14+$R$14+$U$14)*'Cost Amtz Calc - Sch 101-146'!$F$27 -> 17114.13824 | U15: =U14/($D$14+$J$14+$N$14+$R$14+$U$14)*'Cost Amtz Calc - Sch 101-146'!$F$27 -> 146586.4445
B16: Costs after Revenue Conversion Factor | C16: ='Conversion Factor'!E28 -> 1.045717 | D16: =(D14+D15)*$C$16 -> 30119465.93 | J16: =(J14+J15)*$C$16 -> 13813315.51 | N16: =(N14+N15)*$C$16 -> 31072.6726 | R16: =(R14+R15)*$C$16 -> 592008.8836 | U16: =(U14+U15)*$C$16 -> 5070689.283
B17: Revenue Requirement | C17: =SUM(D17:W17) -> 49625281.97 | D17: =D22*D9 -> 30118195.62 | J17: =J16 -> 13813315.51 | N17: =N16 -> 31072.6726 | R17: =R16 -> 592008.8836 | U17: =U16 -> 5070689.283
B19: Avg Number of Customers | D19: =ROUND(SUM(Forecast!$C41:$N41)/12,0) -> 140126 | F19: =ROUND(SUM(Forecast!$C42:$N42)/12,0) -> 30005 | H19: =ROUND(SUM(Forecast!$C43:$N43)/12,0) -> 3809 | J19: =ROUND(SUM(Forecast!$C44:$N44)/12,0) -> 3427 | L19: =ROUND(SUM(Forecast!$C45:$N45)/12,0) -> 73 | N19: =ROUND(SUM(Forecast!$C46:$N46)/12,0) -> 0 | P19: =ROUND(SUM(Forecast!$C47:$N47)/12,0) -> 1 | R19: =ROUND(SUM(Forecast!$C48:$N48)/12,0) -> 4 | T19: 0 | U19: =ROUND(SUM(Forecast!$C49:$N49)/12,0) -> 33 | W19: =ROUND(SUM(Forecast!$C50:$N50)/12,0) -> 2
B21: Monthly Schedule 162 Rate - Cost | D21: n/a | F21: n/a | H21: n/a | J21: n/a | L21: n/a | N21: n/a | P21: n/a | R21: n/a | T21: n/a | U21: n/a | W21: n/a
B22: Per Therm Schedule 162 Rate - Cost | D22: ='Cost Amtz Calc - Sch 101-146'!$E$29 -> 0.22518 | F22: ='Cost Amtz Calc - Sch 101-146'!$E$29 -> 0.22518 | H22: ='Cost Amtz Calc - Sch 101-146'!$E$29 -> 0.22518 | J22: ='Cost Amtz Calc - Sch 101-146'!$E$29 -> 0.22518 | L22: =J22 -> 0.22518 | N22: ='Cost Amtz Calc - Sch 101-146'!$E$29 -> 0.22518 | P22: =N22 -> 0.22518 | R22: ='Cost Amtz Calc - Sch 101-146'!$E$29 -> 0.22518 | T22: =R22 -> 0.22518 | U22: ='Cost Amtz Calc - Sch 101-146'!$E$29 -> 0.22518 | W22: =U22 -> 0.22518
A24: SCHEDULE 162 - CCA Benefits
A25: Forecast | B25: Total Annual Therms (Subject to Benefit) | C25: =SUM(D25:W25) -> 192046732.9 | D25: =IF(D5="Yes",SUM(Forecast!$C$57:$N$57,0)) -> 107641633.6 | J25: =IF(J5="Yes",SUM(Forecast!$C$60:$N$60),0) -> 60044230.42 | N25: =IF(N5="Yes",SUM(Forecast!$C$62:$N$62),0) -> 0 | R25: =IF(R5="Yes",SUM(Forecast!$C$64:$N$64),0) -> 2628936.474 | U25: =IF(U5="Yes",SUM(Forecast!$C$65:$N$65),0) -> 21731932.38
B27: Percentage of Forecasted Load | C27: =SUM(D27:W27) -> 1 | D27: =D25/$C$25 -> 0.5604970832 | J27: =J25/$C$25 -> 0.3126542666 | N27: =N25/$C$25 -> 0 | R27: =R25/$C$25 -> 0.01368904555 | U27: =U25/$C$25 -> 0.1131596047
B29: Benefits Through December 2023 | C29: -37231122
B30: Revenue Spread Based on Current Allocation | C30: =SUM(D30:W30) -> -37231122 | D30: =($C$29-$F$30)*D27 -> -18083242.83 | F30: =F32/C32 -> -4968255.029 | J30: =($C$29-$F$30)*J27 -> -10087123.01 | N30: =($C$29-$F$30)*N27 -> 0 | R30: =($C$29-$F$30)*R27 -> -441647.8555 | U30: =($C$29-$F$30)*U27 -> -3650853.273
B31: Interest During Amortization Period | D31: ='Ben Amtz Calc - Sch 101'!F34+'Ben Amtz Calc - Sch 101'!F48 -> -202081.12 | J31: ='Ben Amtz Calc - Sch 111'!F34+'Ben Amtz Calc - Sch 111'!F48 -> -115756.4 | N31: 0 | R31: ='Ben Amtz Calc - Sch 131-132'!F27 -> -10921.78 | U31: ='Ben Amtz Calc - Sch 146'!F27 -> -90284.23
B32: Benefits after Revenue Conversion Factor | C32: ='Conversion Factor'!E28 -> 1.045717 | D32: =(D30+D31)*$C$32 -> -19121274.11 | F32: =F33 -> -5195388.744 | J32: =(J30+J31)*$C$32 -> -10669324.45 | N32: =(N30+N31)*$C$32 -> 0 | R32: =(R30+R31)*$C$32 -> -473259.7615 | U32: =(U30+U31)*$C$32 -> -3912171.087
B33: Revenue Requirement | C33: =SUM(D33:W33) -> -39371418.15 | D33: =D32 -> -19121274.11 | F33: =F35*Forecast!O58 -> -5195388.744 | J33: =J32 -> -10669324.45 | N33: =N32 -> 0 | R33: =R32 -> -473259.7615 | U33: =U32 -> -3912171.087
B35: Monthly Schedule 162 Rate - Benefit* | D35: =(('Ben Amtz Calc - Sch 101'!E36*7)+('Ben Amtz Calc - Sch 101'!E50*5))/12 -> -11.36916667 | F35: =-F22 -> -0.22518 | J35: =(('Ben Amtz Calc - Sch 111'!E36*7)+('Ben Amtz Calc - Sch 111'!E50*5))/12 -> -259.4533333 | N35: 0 | R35: ='Ben Amtz Calc - Sch 131-132'!E29 -> -9859.58 | U35: ='Ben Amtz Calc - Sch 146'!E29 -> -9879.22
B37: Monthly Net Schedule 162 Cost (Est.) | D37: =(D9/(D19+H19+F19)/12*D22)+D35 -> 3.060232177 | F37: =F35+F22 -> 0 | H37: =H35+H22 -> 0.22518 | J37: =(J9/(J19+L19)/12*J22)+J35 -> 69.42126013 | L37: =(J9/(J19+L19)/12*J22) -> 328.8745935 | N37: =(N9/(N19+P19)/12*N22)+N35 -> 2589.280175 | P37: =(N9/(N19+P19)/12*N22) -> 2589.280175 | R37: =(R9/R19/12*R22)+R35 -> 2473.418234 | T37: =T21 -> n/a | U37: =(U9/(U19+W19)/12*U22)+U35 -> 2193.340532 | W37: =W39/12/W19 -> 7369.95375
B39: Net 162 Revenue | C39: =C17+C33 -> 10253863.82 | D39: =D33+D17+F33-H39 -> 5117468.951 | F39: 0 | H39: =H37*Forecast!O59 -> 684063.8166 | J39: =J33+J17-L39 -> 2855896.919 | L39: =L37*L19*12 -> 288094.1439 | N39: 0 | P39: =P22*N9 -> 31071.36209 | R39: =R33+R17 -> 118749.122 | T39: =T33+T17 -> 0 | U39: =U33+U17-W39 -> 981639.3064 | W39: ='Sch 146 - Load Forecast'!O15*'WA Gas - Sched 162'!W22 -> 176878.89
B41: Present Revenue | C41: =SUM(D41:W41) -> 275695986.5 | D41: =H58*D19 -> 156751566.7 | F41: =H58*F19 -> 33565011.2 | H41: =H58*H19 -> 4260927.434 | J41: =(J19*H59) -> 74577947.56 | L41: =L19*H59 -> 1588616.916 | N41: 0 | P41: =111000+25000 -> 136000 | R41: =R19*H61 -> 1707098.32 | T41: 0 | U41: =U19*H62 -> 2931171.609 | W41: =W19*H62 -> 177646.7642
B43: Overall Revenue Change % | C43: =IFERROR(C39/C41,0) -> 0.03719264815 | D43: =IFERROR(D39/D41,0) -> 0.03264700353 | F43: =IFERROR(F39/F41,0) -> 0 | H43: =IFERROR(H39/H41,0) -> 0.1605434092 | J43: =IFERROR(J39/J41,0) -> 0.03829412061 | L43: =IFERROR(L39/L41,0) -> 0.1813490344 | N43: n/a | P43: =IFERROR(P39/P41,0) -> 0.2284658978 | R43: =IFERROR(R39/R41,0) -> 0.06956196995 | T43: n/a | U43: =IFERROR(U39/U41,0) -> 0.334896566 | W43: =IFERROR(W39/W41,0) -> 0.9956775222
B45: *The monthly net Schedule 162 cost for Schedule 111 is based on an annual monthly benefit amount, however, as described in the cover letter and on the tab labeled "Sch111 Seasonal Benefit Calc" which calculates the Schedule 111 amortization rates, we proposed a seasonal credit rate.
B48: Support cap of monthly credit - Do Not Print
B49: Cost Per Therm | D49: =(D17+F17+H17)/D9 -> 0.22518 | J49: =J17/J9 -> 0.2251894975 | N49: =N17/N9 -> 0.2251894975 | R49: =R17/R9 -> 0.2251894975 | U49: =U17/U9 -> 0.2251894975
B50: Credit Per Therm | D50: =D33/Forecast!O57 -> -0.1776382749 | J50: =J33/J25 -> -0.177691085 | N50: n/a | R50: =R33/R25 -> -0.1800194741 | U50: =U33/U25 -> -0.1800194763
B51: Net Cost Per Therm | D51: =D50+D49 -> 0.04754172506 | J51: =J50+J49 -> 0.04749841256 | N51: n/a | R51: =R50+R49 -> 0.0451700234 | U51: =U50+U49 -> 0.04517002119
B52: % | D52: =-D50/D49 -> 0.7888723463 | J52: =-J50/J49 -> 0.7890735888 | N52: n/a | R52: =-R50/R49 -> 0.7994132768 | U52: =-U50/U49 -> 0.7994132866
B54: Rev Check Cost | C54: =((D22*D9)+(J22*J9)+(N22*N9)+(R22*R9)+(U22*U9))-C17 -> -822.7238496
B55: Rev Check Benefit | C55: =((D35*Forecast!O41*12)+(F35*Forecast!O58)+(J35*J19*12)+(R35*R19*12)+(U35*U19*12))-C33 -> 3420.764423
B56: Support for Bill Impacts and Revenue - Do Not Print
D57: Annual Revenue at Current Rates | F57: # of Customers | H57: Revenue Per Customer
B58: General Service | C58: 101/102 | D58: 194577505.3 | F58: =D19+F19+H19 -> 173940 | H58: =D58/F58 -> 1118.647265
B59: Large General Service | C59: 111 | D59: =76302564.48-D60 -> 76166564.48 | F59: =J19+L19 -> 3500 | H59: =D59/F59 -> 21761.87557
B60: Large General Service | C60: 112/116 | D60: =N41+P41 -> 136000 | F60: =P19+N19 -> 1 | H60: =D60/F60 -> 136000
B61: Interruptible Service | C61: 131/132 | D61: 1707098.32 | F61: =R19 -> 4 | H61: =D61/F61 -> 426774.58
B62: Transportation Service | C62: 146 | D62: =3733818.3735-625000 -> 3108818.374 | F62: =U19+W19 -> 35 | H62: =D62/F62 -> 88823.3821
D63: =SUM(D58:D62) -> 275695986.5
D64: =C41 -> 275695986.5
D65: =D63-D64 -> 0
B66: Residential Bill Impact | C66: 64
C67: Pre 7/2021 | D67: Post 7/2021 | F67: Fixed/Low Income
B68: Basic Charge | C68: 9.5 | D68: 9.5 | F68: 9.5
B69: First 70 Therms | C69: 1.29338 | D69: 1.29338 | F69: 1.29338
B70: Current Bill @ 66 Therms | C70: =C68+(C69*C66) -> 92.27632 | D70: =D68+(D69*C66) -> 92.27632 | F70: =F68+(F69*C66) -> 92.27632
B71: Increase | C71: =D37 -> 3.060232177 | D71: =H37 -> 0.22518 | F71: =F37 -> 0
B72: Increase % | C72: =C71/C70 -> 0.03316378652 | D72: =D71/D70 -> 0.00244027937 | F72: =F71/F70 -> 0
B73: New Bill | C73: =C71+C70 -> 95.33655218 | D73: =D71+D70 -> 92.5015 | F73: =F71+F70 -> 92.27632

Sheet Rate Impact Summary
A2: Schedule No. | B2: Rate Schedule | C2: # of Customers | D2: Average Monthly Therm Usage to Calculate Impact | E2: Monthly Schedule 162 (CCA Costs) Fee | F2: Monthly Schedule 162 (CCA Benefit) Credit | G2: Total Net Monthly Bill Amount | H2: Annual Net Bill Amount | I2: % Change in Billed Revenue
A3: 101 | B3: General Service pre 7/2021 (Apr - Oct) | C3: ='WA Gas - Sched 162'!D19 -> 140126 | D3: =Forecast!O57/Forecast!O41/12 -> 64.01469182 | E3: =SUM(Forecast!C57:I57)/SUM(Forecast!C41:I41)*'WA Gas - Sched 162'!J22 -> 6.370990599 | F3: ='Ben Amtz Calc - Sch 101'!E36 -> -5.04 | G3: =(E3+F3) -> 1.330990599 | H3: ='WA Gas - Sched 162'!D37*12 -> 36.72278613 | I3: ='WA Gas - Sched 162'!D43 -> 0.03264700353
A4: 101 | B4: General Service pre 7/2021 (Nov - Mar) | E4: =SUM(Forecast!J57:N57)/SUM(Forecast!J41:N41)*'WA Gas - Sched 162'!J22 -> 25.67620109 | F4: ='Ben Amtz Calc - Sch 101'!E50 -> -20.23 | G4: =(E4+F4) -> 5.446201093
A5: 101 | B5: Low-Income Residential | C5: ='WA Gas - Sched 162'!F19 -> 30005 | D5: =Forecast!O58/Forecast!O42/12 -> 64.07931506 | E5: ='WA Gas - Sched 162'!F22*D5 -> 14.42938016 | F5: ='WA Gas - Sched 162'!F35*D5 -> -14.42938016 | G5: =(E5+F5) -> 0 | H5: =G5*12 -> 0 | I5: ='WA Gas - Sched 162'!F43 -> 0
A6: 101 | B6: General Service After 7/2021 | C6: ='WA Gas - Sched 162'!H19 -> 3809 | D6: =Forecast!O59/Forecast!O43/12 -> 66.45648297 | E6: ='WA Gas - Sched 162'!H22*D6 -> 14.96467083 | F6: ='WA Gas - Sched 162'!H35*D6 -> 0 | G6: =(E6+F6) -> 14.96467083 | H6: =G6*12 -> 179.57605 | I6: ='WA Gas - Sched 162'!H43 -> 0.1605434092
A7: 111 | B7: Large General Service - Firm pre 7/2021 (Apr - Oct) | C7: ='WA Gas - Sched 162'!J19 -> 3427 | D7: =Forecast!O60/Forecast!O44/12 -> 1460.158802 | E7: =SUM(Forecast!C60:I60)/SUM(Forecast!C44:I44)*'WA Gas - Sched 162'!J22 -> 186.4345331 | F7: ='Ben Amtz Calc - Sch 111'!E36 -> -147.52 | G7: =E7+F7 -> 38.9145331 | H7: ='WA Gas - Sched 162'!J37*12 -> 833.0551215 | I7: ='WA Gas - Sched 162'!J43 -> 0.03829412061
A8: 111 | B8: Large General Service - Firm pre 7/2021 (Nov - mar) | E8: =SUM(Forecast!J60:N60)/SUM(Forecast!J44:N44)*'WA Gas - Sched 162'!J22 -> 528.1081951 | F8: ='Ben Amtz Calc - Sch 111'!E50 -> -416.16 | G8: 111.9481951
A9: 111 | B9: Large General Service - Firm after 7/2021 | C9: ='WA Gas - Sched 162'!L19 -> 73 | D9: =Forecast!O61/Forecast!O45/12 -> 1480.160977 | E9: ='WA Gas - Sched 162'!L37 -> 328.8745935 | F9: ='WA Gas - Sched 162'!L35 -> 0 | G9: =E9+F9 -> 328.8745935 | H9: =G9*12 -> 3946.495122 | I9: ='WA Gas - Sched 162'!L43 -> 0.1813490344
A10: 112/116 | B10: Large General Service - Firm (Former Transport) pre 7/2021 | C10: ='WA Gas - Sched 162'!N19 -> 0 | D10: n/a | E10: ='WA Gas - Sched 162'!N22*'WA Gas - Sched 162'!N9/12 -> 2589.280175 | F10: n/a | G10: n/a | H10: n/a | I10: n/a
A11: 112/116 | B11: Large General Service - Firm (Former Transport) after 7/2021 | C11: ='WA Gas - Sched 162'!P19 -> 1 | D11: =Forecast!O63/Forecast!O47/12 -> 11498.71292 | E11: ='WA Gas - Sched 162'!N22*'WA Gas - Sched 162'!N9/12 -> 2589.280175 | F11: =F9 -> 0 | G11: 2589.280175 | H11: =G11*12 -> 31071.36209 | I11: ='WA Gas - Sched 162'!P43 -> 0.2284658978
A12: 131/132 | B12: Interruptible Service pre 7/2021 | C12: ='WA Gas - Sched 162'!R19 -> 4 | D12: =Forecast!O64/Forecast!O48/12 -> 54769.50987 | E12: ='WA Gas - Sched 162'!R22*'WA Gas - Sched 162'!R9/'WA Gas - Sched 162'!R19/12 -> 12332.99823 | F12: ='WA Gas - Sched 162'!R35 -> -9859.58 | G12: 2473.418234 | H12: =G12*12 -> 29681.0188 | I12: ='WA Gas - Sched 162'!R43 -> 0.06956196995
A13: 131/132 | B13: Interruptible Service - After 7/2021 | C13: ='WA Gas - Sched 162'!T19 -> 0 | D13: n/a | E13: ='WA Gas - Sched 162'!R22*'WA Gas - Sched 162'!R9/'WA Gas - Sched 162'!R19/12 -> 12332.99823 | F13: n/a | G13: n/a | H13: n/a | I13: ='WA Gas - Sched 162'!T43 -> n/a
A14: 146 | B14: Transport Service pre 7/2021 | C14: ='WA Gas - Sched 162'!U19 -> 33 | D14: =Forecast!O65/Forecast!O49/12 -> 54878.61712 | E14: =(('WA Gas - Sched 162'!U9*'WA Gas - Sched 162'!U22)-'WA Gas - Sched 162'!W37)/'WA Gas - Sched 162'!U19/12 -> 12785.61987 | F14: ='WA Gas - Sched 162'!U35 -> -9879.22 | G14: =E14+F14 -> 2906.399873 | H14: =G14*12 -> 34876.79847 | I14: ='WA Gas - Sched 162'!U43 -> 0.334896566
A15: 146 | B15: Transport Service After 7/2021 | C15: ='WA Gas - Sched 162'!W19 -> 2 | D15: =Forecast!O66/Forecast!O50/12 -> 32729.16667 | E15: ='WA Gas - Sched 162'!W37 -> 7369.95375 | F15: 0 | G15: 7369.95375 | H15: 88439.445 | I15: ='WA Gas - Sched 162'!W43 -> 0.9956775222

Sheet Forecast
A1: Avista Utilities
A2: State of Washington
A3: Forecasted Billing Determ - Schedule 162
C4: 2024-04-30 | D4: =EOMONTH(C4,1) -> 2024-05-31 | E4: =EOMONTH(D4,1) -> 2024-06-30 | F4: =EOMONTH(E4,1) -> 2024-07-31 | G4: =EOMONTH(F4,1) -> 2024-08-31 | H4: =EOMONTH(G4,1) -> 2024-09-30 | I4: =EOMONTH(H4,1) -> 2024-10-31 | J4: =EOMONTH(I4,1) -> 2024-11-30 | K4: =EOMONTH(J4,1) -> 2024-12-31 | L4: =EOMONTH(K4,1) -> 2025-01-31 | M4: =EOMONTH(L4,1) -> 2025-02-28 | N4: =EOMONTH(M4,1) -> 2025-03-31
B5: Loads by Schedule
B6: Total
B7: WA101 | C7: 9499682.724 | D7: 5016514.467 | E7: 3135852.51 | F7: 2272841.102 | G7: 2316389.986 | H7: 3415987.888 | I7: 8775642.885 | J7: 16621413.95 | K7: 25026063.17 | L7: 22656909.18 | M7: 19849602.89 | N7: 15164745.13
B8: WA111 | C8: 4348827.362 | D8: 2709142.879 | E8: 2087159.713 | F8: 1746817.769 | G8: 1922964.256 | H8: 2425888.283 | I8: 5048312.124 | J8: 7775814.038 | K8: 9889776.036 | L8: 9069853.306 | M8: 7924640.973 | N8: 6391654.694
B9: WA112 | C9: 43.2 | D9: 13047.877 | E9: 14626.32 | F9: 13714.83 | G9: 5963.528 | H9: 30861.5 | I9: 48088 | J9: 11639.3 | K9: 0 | L9: 0 | M9: 0 | N9: 0
B10: WA121 | C10: 0 | D10: 0 | E10: 0 | F10: 0 | G10: 0 | H10: 0 | I10: 0 | J10: 0 | K10: 0 | L10: 0 | M10: 0 | N10: 0
B11: WA132 | C11: 243961 | D11: 192768 | E11: 149592 | F11: 127723 | G11: 130942 | H11: 139991 | I11: 153667.474 | J11: 163545 | K11: 377381 | L11: 348098 | M11: 300634 | N11: 300634
B12: WA146 | C12: ='Sch 146 - Load Forecast'!C11 -> 2199143.379 | D12: ='Sch 146 - Load Forecast'!D11 -> 1886501.8 | E12: ='Sch 146 - Load Forecast'!E11 -> 1674834.322 | F12: ='Sch 146 - Load Forecast'!F11 -> 1372870.855 | G12: ='Sch 146 - Load Forecast'!G11 -> 1352081.05 | H12: ='Sch 146 - Load Forecast'!H11 -> 1299319.047 | I12: ='Sch 146 - Load Forecast'!I11 -> 1419161.687 | J12: ='Sch 146 - Load Forecast'!J11 -> 1865826.157 | K12: ='Sch 146 - Load Forecast'!K11 -> 2164821.626 | L12: ='Sch 146 - Load Forecast'!L11 -> 2534684.412 | M12: ='Sch 146 - Load Forecast'!M11 -> 2450818.862 | N12: ='Sch 146 - Load Forecast'!N11 -> 2297369.184
C14: =SUM(C7:C13) -> 16291657.66 | D14: =SUM(D7:D13) -> 9817975.024 | E14: =SUM(E7:E13) -> 7062064.865 | F14: 5533967.555 | G14: 5728340.82 | H14: 7312047.718 | I14: 15444872.17 | J14: 26438238.44 | K14: 37458041.83 | L14: 34609544.89 | M14: 30525696.72 | N14: 24154403.01
B16: Gas Customers
B17: Total
B18: WA101 | C18: 173751.8094 | D18: 173492.2965 | E18: 173575.4822 | F18: 173630.2067 | G18: 173863.1503 | H18: 173754.4968 | I18: 174389.3714 | J18: 174154.057 | K18: 174861.699 | L18: 173930.6877 | M18: 173936.7109 | N18: 173942.7342
B19: WA111 | C19: 3499.809373 | D19: 3499.809373 | E19: 3499.809373 | F19: 3499.809373 | G19: 3499.809373 | H19: 3499.809373 | I19: 3499.809373 | J19: 3499.809373 | K19: 3499.809373 | L19: 3499.809373 | M19: 3499.809373 | N19: 3499.809373
B20: WA112 | C20: 1 | D20: 1 | E20: 1 | F20: 1 | G20: 1 | H20: 1 | I20: 1 | J20: 1 | K20: 1 | L20: 1 | M20: 1 | N20: 1
B21: WA121 | C21: 0 | D21: 0 | E21: 0 | F21: 0 | G21: 0 | H21: 0 | I21: 0 | J21: 0 | K21: 0 | L21: 0 | M21: 0 | N21: 0
B22: WA132 | C22: 4 | D22: 4 | E22: 4 | F22: 4 | G22: 4 | H22: 4 | I22: 4 | J22: 4 | K22: 4 | L22: 4 | M22: 4 | N22: 4
B23: WA146 | C23: 35 | D23: 35 | E23: 35 | F23: 35 | G23: 35 | H23: 35 | I23: 35 | J23: 35 | K23: 35 | L23: 35 | M23: 35 | N23: 35
C25: =SUM(C18:C24) -> 177291.6188 | D25: =SUM(D18:D24) -> 177032.1058 | E25: =SUM(E18:E24) -> 177115.2915 | F25: =SUM(F18:F24) -> 177170.0161 | G25: =SUM(G18:G24) -> 177402.9597 | H25: =SUM(H18:H24) -> 177294.3062 | I25: =SUM(I18:I24) -> 177929.1808 | J25: =SUM(J18:J24) -> 177693.8663 | K25: =SUM(K18:K24) -> 178401.5084 | L25: =SUM(L18:L24) -> 177470.4971 | M25: =SUM(M18:M24) -> 177476.5203 | N25: =SUM(N18:N24) -> 177482.5436
B27: New Customers (7/25/2021+) as of 11/30/2023
B28: WA101 | C28: 4415 | D28: =D18-C18+C28 -> 4155.487069 | E28: 4238.672767 | F28: 4293.397344 | G28: 4526.340919 | H28: 4417.687447 | I28: 5052.561998 | J28: 4817.247564 | K28: 5524.889591 | L28: 4593.878302 | M28: 4599.901557 | N28: 4605.924813
B29: WA111 | C29: 73 | D29: =D19-C19+C29 -> 73 | E29: 73 | F29: 73 | G29: 73 | H29: 73 | I29: 73 | J29: 73 | K29: 73 | L29: 73 | M29: 73 | N29: 73
B30: WA112 | C30: 1 | D30: =D20-C20+C30 -> 1 | E30: 1 | F30: 1 | G30: 1 | H30: 1 | I30: 1 | J30: 1 | K30: 1 | L30: 1 | M30: 1 | N30: 1
B31: WA121 | C31: 0 | D31: =D21-C21+C31 -> 0 | E31: 0 | F31: 0 | G31: 0 | H31: 0 | I31: 0 | J31: 0 | K31: 0 | L31: 0 | M31: 0 | N31: 0
B32: WA132 | C32: 0 | D32: =D22-C22+C32 -> 0 | E32: 0 | F32: 0 | G32: 0 | H32: 0 | I32: 0 | J32: 0 | K32: 0 | L32: 0 | M32: 0 | N32: 0
B33: WA146 | C33: 2 | D33: =D23-C23+C33 -> 2 | E33: 2 | F33: 2 | G33: 2 | H33: 2 | I33: 2 | J33: 2 | K33: 2 | L33: 2 | M33: 2 | N33: 2
C34: 0 | D34: =D24-C24+C34 -> 0 | E34: 0 | F34: 0 | G34: 0 | H34: 0 | I34: 0 | J34: 0 | K34: 0 | L34: 0 | M34: 0 | N34: 0
C35: =SUM(C28:C34) -> 4491 | D35: =SUM(D28:D34) -> 4231.487069 | E35: =SUM(E28:E34) -> 4314.672767 | F35: 4369.397344 | G35: 4602.340919 | H35: 4493.687447 | I35: 5128.561998 | J35: 4893.247564 | K35: 5600.889591 | L35: 4669.878302 | M35: 4675.901557 | N35: 4681.924813
C37: =C57/C41 -> 54.67386358 | D37: 28.9149119 | E37: 18.06621806 | F37: 13.09012495 | G37: 13.32306462 | H37: 19.65985313 | I37: 50.32212006 | J37: 95.44086563 | K37: 143.1191812 | L37: 130.2640119 | M37: 114.1196863 | N37: 87.18240059
C38: =C58/C42 -> 54.67386358 | D38: 28.9149119 | E38: 18.06621806 | F38: 13.09012495 | G38: 13.32306462 | H38: 19.65985313 | I38: 50.32212006 | J38: 95.44086563 | K38: 143.1191812 | L38: 130.2640119 | M38: 114.1196863 | N38: 87.18240059
C39: =C59/C43 -> 54.67386358 | D39: 28.9149119 | E39: 18.06621806 | F39: 13.09012495 | G39: 13.32306462 | H39: 19.65985313 | I39: 50.32212006 | J39: 95.44086563 | K39: 143.1191812 | L39: 130.2640119 | M39: 114.1196863 | N39: 87.18240059
B40: Customer Count by New Rate Schedule Estimate
B41: =B57 -> SCH. 101 Pre 7/2021 | C41: =C18-C42-C43 -> 140126.2098 | D41: =D18-D42-D43 -> 140126.2098 | E41: 140126.2098 | F41: 140126.2098 | G41: 140126.2098 | H41: 140126.2098 | I41: 140126.2098 | J41: 140126.2098 | K41: 140126.2098 | L41: 140126.2098 | M41: 140126.2098 | N41: 140126.2098 | O41: =AVERAGE(B41:N41) -> 140126.2098
B42: =B58 -> SCH. 101 Res Fixed/Low Income | C42: =(C18)*'WA Gas - Sched 162'!$F$2 -> 29972.18712 | D42: =(D18)*'WA Gas - Sched 162'!$F$2 -> 29927.42114 | E42: =(E18)*'WA Gas - Sched 162'!$F$2 -> 29941.77067 | F42: =(F18)*'WA Gas - Sched 162'!$F$2 -> 29951.21066 | G42: =(G18)*'WA Gas - Sched 162'!$F$2 -> 29991.39343 | H42: =(H18)*'WA Gas - Sched 162'!$F$2 -> 29972.6507 | I42: =(I18)*'WA Gas - Sched 162'!$F$2 -> 30082.16656 | J42: =(J18)*'WA Gas - Sched 162'!$F$2 -> 30041.57482 | K42: =(K18)*'WA Gas - Sched 162'!$F$2 -> 30163.64307 | L42: =(L18)*'WA Gas - Sched 162'!$F$2 -> 30003.04363 | M42: =(M18)*'WA Gas - Sched 162'!$F$2 -> 30004.08264 | N42: =(N18)*'WA Gas - Sched 162'!$F$2 -> 30005.12165 | O42: 30004.68884
B43: =B59 -> SCH. 101 Post 7/2021 | C43: =(C28*(1-'WA Gas - Sched 162'!$F$2)) -> 3653.4125 | D43: =(D28*(1-'WA Gas - Sched 162'!$F$2)) -> 3438.665549 | E43: =(E28*(1-'WA Gas - Sched 162'!$F$2)) -> 3507.501715 | F43: =(F28*(1-'WA Gas - Sched 162'!$F$2)) -> 3552.786302 | G43: =(G28*(1-'WA Gas - Sched 162'!$F$2)) -> 3745.54711 | H43: =(H28*(1-'WA Gas - Sched 162'!$F$2)) -> 3655.636363 | I43: =(I28*(1-'WA Gas - Sched 162'!$F$2)) -> 4180.995054 | J43: =(J28*(1-'WA Gas - Sched 162'!$F$2)) -> 3986.272359 | K43: =(K28*(1-'WA Gas - Sched 162'!$F$2)) -> 4571.846137 | L43: =(L28*(1-'WA Gas - Sched 162'!$F$2)) -> 3801.434295 | M43: =(M28*(1-'WA Gas - Sched 162'!$F$2)) -> 3806.418539 | N43: =(N28*(1-'WA Gas - Sched 162'!$F$2)) -> 3811.402783 | O43: 3809.326559
B44: =B60 -> SCH. 111 | C44: =C19-C45 -> 3426.809373 | D44: =D19-D45 -> 3426.809373 | E44: 3426.809373 | F44: 3426.809373 | G44: 3426.809373 | H44: 3426.809373 | I44: 3426.809373 | J44: 3426.809373 | K44: 3426.809373 | L44: 3426.809373 | M44: 3426.809373 | N44: 3426.809373 | O44: 3426.809373
B45: =B61 -> SCH. 111 Post 7/21 | C45: =C29 -> 73 | D45: =D29 -> 73 | E45: 73 | F45: 73 | G45: 73 | H45: 73 | I45: 73 | J45: 73 | K45: 73 | L45: 73 | M45: 73 | N45: 73 | O45: 73
B46: =B62 -> SCH. 112, 116 | C46: =C20-C47 -> 0 | D46: =D20-D47 -> 0 | E46: 0 | F46: 0 | G46: 0 | H46: 0 | I46: 0 | J46: 0 | K46: 0 | L46: 0 | M46: 0 | N46: 0 | O46: 0
B47: SCH. 112, 116 Post 7/21 | C47: =C30 -> 1 | D47: =D30 -> 1 | E47: 1 | F47: 1 | G47: 1 | H47: 1 | I47: 1 | J47: 1 | K47: 1 | L47: 1 | M47: 1 | N47: 1 | O47: 1
B48: =B64 -> SCH. 131&132 | C48: =C22 -> 4 | D48: =D22 -> 4 | E48: 4 | F48: 4 | G48: 4 | H48: 4 | I48: 4 | J48: 4 | K48: 4 | L48: 4 | M48: 4 | N48: 4 | O48: 4
B49: =B65 -> SCH. 146 | C49: =C23-C50 -> 33 | D49: =D23-D50 -> 33 | E49: 33 | F49: 33 | G49: 33 | H49: 33 | I49: 33 | J49: 33 | K49: 33 | L49: 33 | M49: 33 | N49: 33 | O49: 33
B50: =B66 -> SCH. 146 Post 7/21 | C50: =C33 -> 2 | D50: =D33 -> 2 | E50: 2 | F50: 2 | G50: 2 | H50: 2 | I50: 2 | J50: 2 | K50: 2 | L50: 2 | M50: 2 | N50: 2 | O50: 2
C51: 0 | D51: 0 | E51: 0 | F51: 0 | G51: 0 | H51: 0 | I51: 0 | J51: 0 | K51: 0 | L51: 0 | M51: 0 | N51: 0 | O51: 0
C52: =SUM(C41:C51) -> 177291.6188 | D52: 177032.1058 | E52: 177115.2915 | F52: 177170.0161 | G52: 177402.9597 | H52: 177294.3062 | I52: 177929.1808 | J52: 177693.8663 | K52: 178401.5084 | L52: 177470.4971 | M52: 177476.5203 | N52: 177482.5436 | O52: 177480.0345
C53: =C52-C25 -> 0 | D53: 0 | E53: 0 | F53: 0 | G53: 0 | H53: 0 | I53: 0 | J53: 0 | K53: 0 | L53: 0 | M53: 0 | N53: 0
B56: Usage by Rate Schedule Estimate | O56: Annual
B57: ='WA Gas - Sched 162'!D7 -> SCH. 101 Pre 7/2021 | C57: =C7-C58-C59 -> 7661241.277 | D57: 4051737.01 | E57: 2531550.661 | F57: 1834269.595 | G57: 1866910.548 | H57: 2754860.703 | I57: 7051447.952 | J57: 13373766.76 | K57: 20054748.4 | L57: 18253402.26 | M57: 15991159.1 | N57: 12216539.35 | O57: =SUM(C57:N57) -> 107641633.6
B58: ='WA Gas - Sched 162'!F7 -> SCH. 101 Res Fixed/Low Income | C58: =C7*'WA Gas - Sched 162'!$F$2 -> 1638695.27 | D58: =D7*'WA Gas - Sched 162'!$F$2 -> 865348.7456 | E58: =E7*'WA Gas - Sched 162'!$F$2 -> 540934.5579 | F58: =F7*'WA Gas - Sched 162'!$F$2 -> 392065.09 | G58: =G7*'WA Gas - Sched 162'!$F$2 -> 399577.2726 | H58: =H7*'WA Gas - Sched 162'!$F$2 -> 589257.9106 | I58: =I7*'WA Gas - Sched 162'!$F$2 -> 1513798.398 | J58: =J7*'WA Gas - Sched 162'!$F$2 -> 2867193.906 | K58: =K7*'WA Gas - Sched 162'!$F$2 -> 4316995.897 | L58: =L7*'WA Gas - Sched 162'!$F$2 -> 3908316.833 | M58: =M7*'WA Gas - Sched 162'!$F$2 -> 3424056.498 | N58: =N7*'WA Gas - Sched 162'!$F$2 -> 2615918.535 | O58: =SUM(C58:N58) -> 23072158.91
B59: ='WA Gas - Sched 162'!H7 -> SCH. 101 Post 7/2021 | C59: =C7/C18*C43 -> 199746.1766 | D59: =D7/D18*D43 -> 99428.71141 | E59: 63367.29081 | F59: 46506.41662 | G59: 49902.16618 | H59: 71869.27397 | I59: 210396.5351 | J59: 380453.2846 | K59: 654318.8755 | L59: 495190.0823 | M59: 434387.2896 | N59: 332287.2442 | O59: =SUM(C59:N59) -> 3037853.347
B60: ='WA Gas - Sched 162'!J7 -> SCH. 111 | C60: =(C19+C20-C29-C30)/(C19+C20)*(C8) -> 4256901.984 | D60: =(D19+D20-D29-D30)/(D19+D20)*(D8) -> 2651877.101 | E60: 2043041.396 | F60: 1709893.589 | G60: 1882316.697 | H60: 2374609.932 | I60: 4941601.059 | J60: 7611449.122 | K60: 9680726.257 | L60: 8878135.028 | M60: 7757130.158 | N60: 6256548.095 | O60: =SUM(C60:N60) -> 60044230.42
B61: ='WA Gas - Sched 162'!L7 -> SCH. 111 Post 7/21 | C61: =C8-C60 -> 91925.37794 | D61: =D8-D60 -> 57265.77819 | E61: 44118.31731 | F61: 36924.17984 | G61: 40647.55882 | H61: 51278.35132 | I61: 106711.0652 | J61: 164364.9161 | K61: 209049.7792 | L61: 191718.278 | M61: 167510.8152 | N61: 135106.5988 | O61: 1296621.016
B62: ='WA Gas - Sched 162'!N7 -> SCH. 112, 116 | C62: =C9-C63 -> 0 | D62: =D9-D63 -> 0 | E62: 0 | F62: 0 | G62: 0 | H62: 0 | I62: 0 | J62: 0 | K62: 0 | L62: 0 | M62: 0 | N62: 0 | O62: 0
B63: ='WA Gas - Sched 162'!P7 -> SCH. 112, 116 Post 7/21 | C63: =C9/C30*C47 -> 43.2 | D63: =D9/D30*D47 -> 13047.877 | E63: 14626.32 | F63: 13714.83 | G63: 5963.528 | H63: 30861.5 | I63: 48088 | J63: 11639.3 | K63: 0 | L63: 0 | M63: 0 | N63: 0 | O63: 137984.555
B64: ='WA Gas - Sched 162'!R7 -> SCH. 131&132 | C64: =C11 -> 243961 | D64: =D11 -> 192768 | E64: 149592 | F64: 127723 | G64: 130942 | H64: 139991 | I64: 153667.474 | J64: 163545 | K64: 377381 | L64: 348098 | M64: 300634 | N64: 300634 | O64: 2628936.474
B65: ='WA Gas - Sched 162'!U7 -> SCH. 146 | C65: =C12-C66 -> 2151987.379 | D65: =D12-D66 -> 1838527.8 | E65: 1634341.322 | F65: 1334698.855 | G65: 1222218.05 | H65: 1209977.047 | I65: 1297947.687 | J65: 1767840.157 | K65: 2128125.626 | L65: 2489870.412 | M65: 2404874.862 | N65: 2251523.184 | O65: 21731932.38
B66: ='WA Gas - Sched 162'!W7 -> SCH. 146 Post 7/21 | C66: ='Sch 146 - Load Forecast'!C15 -> 47156 | D66: ='Sch 146 - Load Forecast'!D15 -> 47974 | E66: ='Sch 146 - Load Forecast'!E15 -> 40493 | F66: ='Sch 146 - Load Forecast'!F15 -> 38172 | G66: ='Sch 146 - Load Forecast'!G15 -> 129863 | H66: ='Sch 146 - Load Forecast'!H15 -> 89342 | I66: ='Sch 146 - Load Forecast'!I15 -> 121214 | J66: ='Sch 146 - Load Forecast'!J15 -> 97986 | K66: ='Sch 146 - Load Forecast'!K15 -> 36696 | L66: ='Sch 146 - Load Forecast'!L15 -> 44814 | M66: ='Sch 146 - Load Forecast'!M15 -> 45944 | N66: ='Sch 146 - Load Forecast'!N15 -> 45846 | O66: 785500
C67: 0 | D67: 0 | E67: 0 | F67: 0 | G67: 0 | H67: 0 | I67: 0 | J67: 0 | K67: 0 | L67: 0 | M67: 0 | N67: 0 | O67: 0
C68: =SUM(C57:C67) -> 16291657.66 | D68: 9817975.024 | E68: 7062064.865 | F68: 5533967.555 | G68: 5728340.82 | H68: 7312047.718 | I68: 15444872.17 | J68: 26438238.44 | K68: 37458041.83 | L68: 34609544.89 | M68: 30525696.72 | N68: 24154403.01 | O68: 220376850.7
C69: =C68-C14 -> 0 | D69: 0 | E69: 0 | F69: 0 | G69: 0 | H69: 0 | I69: 0 | J69: 0 | K69: 0 | L69: 0 | M69: 0 | N69: 0

Sheet Sch 146 - Load Forecast
A1: Avista Utilities
A2: State of Washington
A3: Forecasted Schedule 146 Billing Determ - Schedule 162 (from current GRC loads)
B5: Washington Gas Billing Determinants by Customer
B7: ANNUAL USAGE, Sch 146
B8: Washington | C8: 2024-04-30 | D8: =EOMONTH(C8,1) -> 2024-05-31 | E8: =EOMONTH(D8,1) -> 2024-06-30 | F8: 2024-07-31 | G8: 2024-08-31 | H8: 2024-09-30 | I8: 2024-10-31 | J8: 2024-11-30 | K8: 2024-12-31 | L8: 2025-01-31 | M8: 2025-02-28 | N8: 2025-03-31 | O8: Total
B9: Forecasted Load | C9: 2878601.379 | D9: 2520984.8 | E9: 2231816.322 | F9: 2063729.855 | G9: 1976312.05 | H9: 1902718.047 | I9: 2051878.687 | J9: 2488242.157 | K9: 2909124.626 | L9: 3060969.412 | M9: 3209173.862 | N9: 2996149.184 | O9: =SUM(C9:N9) -> 30289700.38
B10: Less Exempt Schedule 146 Customer | C10: 679458 | D10: 634483 | E10: 556982 | F10: 690859 | G10: 624231 | H10: 603399 | I10: 632717 | J10: 622416 | K10: 744303 | L10: 526285 | M10: 758355 | N10: 698780 | O10: =SUM(C10:N10) -> 7772268 | Q10: =Q$7*12-SUMPRODUCT(--($G10:$N10<=Q$7),Q$7-$G10:$N10) -> 0 | R10: =R$7*12-SUM($Q10:Q10)-SUMPRODUCT(--($G10:$N10<=R$7),R$7-$G10:$N10) -> 0 | S10: =S$7*12-SUM($Q10:R10)-SUMPRODUCT(--($G10:$N10<=S$7),S$7-$G10:$N10) -> 0 | T10: =T$7*12-SUM($Q10:S10)-SUMPRODUCT(--($G10:$N10<=T$7),T$7-$G10:$N10) -> 0 | U10: =U$7*12-SUM($Q10:T10)-SUMPRODUCT(--($G10:$N10<=U$7),U$7-$G10:$N10) -> 0 | W10: =IF(O10<250000,(250000-O10)*[20]RD!$E$56,0) -> 0 | X10: =IF(O10<250000,(250000-O10)*[20]RD!$K$56,0) -> 0
B11: Net Applicable Schedule 146 Load | C11: =C9-C10 -> 2199143.379 | D11: 1886501.8 | E11: 1674834.322 | F11: 1372870.855 | G11: 1352081.05 | H11: 1299319.047 | I11: 1419161.687 | J11: 1865826.157 | K11: 2164821.626 | L11: 2534684.412 | M11: 2450818.862 | N11: 2297369.184 | O11: =SUM(C11:N11) -> 22517432.38
B13: Post 7/2021 Schedule 146 Customer #1 | C13: 47156 | D13: 47974 | E13: 40493 | F13: 38172 | G13: 37798 | H13: 36926 | I13: 37391 | J13: 39924 | K13: 36696 | L13: 44814 | M13: 45944 | N13: 45846 | O13: =SUM(C13:N13) -> 499134
B14: Post 7/2021 Schedule 146 Customer #2 | G14: 92065 | H14: 52416 | I14: 83823 | J14: 58062 | O14: =SUM(C14:N14) -> 286366
B15: Total | C15: =SUM(C13:C14) -> 47156 | D15: =SUM(D13:D14) -> 47974 | E15: 40493 | F15: 38172 | G15: 129863 | H15: 89342 | I15: 121214 | J15: 97986 | K15: 36696 | L15: 44814 | M15: 45944 | N15: 45846 | O15: =SUM(C15:N15) -> 785500

Sheet Cost Amtz Calc - Sch 101-146
A1: Avista Utilities
A2: State of Washington | E2: RCF | F2: ='Conversion Factor'!E28 -> 1.045717
A3: Development of Amortization Rate
B6: AMORTIZATION RATE CALCULATION
C8: Schedule 101-146 - Costs to All Customers
C9: Customers | D9: Amortization & Deferral | E9: Interest | F9: Balance
E10: 0.048
B11: Beginning Balance | D11: Amortization | F11: ='WA Gas - Sched 162'!C14 -> 46022329
B12: 2024-04-30 | C12: =Forecast!C14 -> 16291657.66 | D12: =-(C12/$C$24)*$F$11 -> -3402263.108 | E12: =ROUND((F11+(D12/2))*E$10/12,2) -> 177284.79 | F12: =F11+D12+E12 -> 42797350.68
B13: =EOMONTH(B12,1) -> 2024-05-31 | C13: =Forecast!D14 -> 9817975.024 | D13: =-(C13/$C$24)*$F$11 -> -2050333.668 | E13: =ROUND((F12+(D13/2))*E$10/12,2) -> 167088.74 | F13: =+F12+D13+E13 -> 40914105.75
B14: =EOMONTH(B13,1) -> 2024-06-30 | C14: =Forecast!E14 -> 7062064.865 | D14: -1474804.053 | E14: 160706.81 | F14: =+F13+D14+E14 -> 39600008.51
B15: 2024-07-31 | C15: =Forecast!F14 -> 5533967.555 | D15: -1155684.341 | E15: 156088.67 | F15: 38600412.84
B16: 2024-08-31 | C16: =Forecast!G14 -> 5728340.82 | D16: -1196276.22 | E16: 152009.1 | F16: 37556145.72
B17: 2024-09-30 | C17: =Forecast!H14 -> 7312047.718 | D17: -1527009.142 | E17: 147170.56 | F17: 36176307.14
B18: 2024-10-31 | C18: =Forecast!I14 -> 15444872.17 | D18: -3225424.93 | E18: 138254.38 | F18: 33089136.59
B19: 2024-11-30 | C19: =Forecast!J14 -> 26438238.44 | D19: -5521221.053 | E19: 121314.1 | F19: 27689229.64
B20: 2024-12-31 | C20: =Forecast!K14 -> 37458041.83 | D20: -7822538.163 | E20: 95111.84 | F20: 19961803.31
B21: 2025-01-31 | C21: =Forecast!L14 -> 34609544.89 | D21: -7227673.217 | E21: 65391.87 | F21: 12799521.97
B22: 2025-02-28 | C22: =Forecast!M14 -> 30525696.72 | D22: -6374824.093 | E22: 38448.44 | F22: 6463146.312
B23: 2025-03-31 | C23: =Forecast!N14 -> 24154403.01 | D23: -5044277.012 | E23: 15764.03 | F23: =+F22+D23+E23 -> 1434633.33
C24: =SUM(C12:C23) -> 220376850.7 | D24: =SUM(D12:D23) -> -46022329 | E24: =SUM(E12:E23) -> 1434633.33 | F24: =D24+E24+F11 -> 1434633.33
D26: Amortization Rate | E26: =ROUND(F11/C24,5) -> 0.20883 | F26: =F11 -> 46022329
D27: Interest Rate | E27: =ROUND(F23/C24,5) -> 0.00651 | F27: =E24 -> 1434633.33
D28: Rate Before RCF | E28: =SUM(E26:E27) -> 0.21534 | F28: =SUM(F26:F27) -> 47456962.33
D29: Tariff Rate | E29: =ROUND(E28*$F$2,5) -> 0.22518 | F29: =E29*C24 -> 49624459.25

Sheet Ben Amtz Calc - Sch 101
A1: Avista Utilities
A2: State of Washington | E2: RCF | F2: ='Conversion Factor'!E28 -> 1.045717
A3: Development of Amortization Rate
D5: 2024-04-30 | E5: =EOMONTH(D5,1) -> 2024-05-31 | F5: 2024-06-30 | G5: 2024-07-31 | H5: 2024-08-31 | I5: 2024-09-30 | J5: 2024-10-31 | K5: 2024-11-30 | L5: 2024-12-31 | M5: 2025-01-31 | N5: 2025-02-28 | O5: 2025-03-31 | P5: Total
C6: WA101 | D6: =Forecast!C57 -> 7661241.277 | E6: =Forecast!D57 -> 4051737.01 | F6: =Forecast!E57 -> 2531550.661 | G6: =Forecast!F57 -> 1834269.595 | H6: =Forecast!G57 -> 1866910.548 | I6: =Forecast!H57 -> 2754860.703 | J6: =Forecast!I57 -> 7051447.952 | K6: =Forecast!J57 -> 13373766.76 | L6: =Forecast!K57 -> 20054748.4 | M6: =Forecast!L57 -> 18253402.26 | N6: =Forecast!M57 -> 15991159.1 | O6: =Forecast!N57 -> 12216539.35 | P6: =SUM(D6:O6) -> 107641633.6
D8: Volumes | E8: % of Annual
C9: Apr- Oct | D9: =SUM(D6:J6) -> 27752017.75 | E9: =D9/$D$11 -> 0.2578186229
C10: Nov - Mar | D10: =SUM(K6:O6) -> 79889615.87 | E10: =D10/$D$11 -> 0.7421813771
D11: =D9+D10 -> 107641633.6
C13: Total Annual Benefits to be Allocated | D13: ='WA Gas - Sched 162'!D30 -> -18083242.83
C14: Apr- Oct Benefit | D14: =D13*E9 -> -4662196.765
C15: Nov - Mar Benefit | D15: =D13*E10 -> -13421046.07
B18: AMORTIZATION RATE CALCULATION
C20: Schedule 101 - Benefits to Pre 7/2021 Customers
C21: Customers | D21: Amortization & Deferral | E21: Interest | F21: Balance
E22: 0.048
B23: Beginning Balance | D23: Amortization | F23: =D14 -> -4662196.765
B24: 2024-04-30 | C24: =Forecast!O41 -> 140126.2098 | D24: =-(C24/$C$31)*$F$23 -> 666028.1092 | E24: =ROUND((F23+(D24/2))*$E$22/12,2) -> -17316.73 | F24: =F23+D24+E24 -> -4013485.385
B25: =EOMONTH(B24,1) -> 2024-05-31 | C25: =$C$24 -> 140126.2098 | D25: 666028.1092 | E25: =ROUND((F24+(D25/2))*$E$22/12,2) -> -14721.89 | F25: =+F24+D25+E25 -> -3362179.166
B26: =EOMONTH(B25,1) -> 2024-06-30 | C26: =$C$24 -> 140126.2098 | D26: 666028.1092 | E26: -12116.66 | F26: =+F25+D26+E26 -> -2708267.717
B27: 2024-07-31 | C27: 140126.2098 | D27: 666028.1092 | E27: -9501.01 | F27: -2051740.618
B28: 2024-08-31 | C28: 140126.2098 | D28: 666028.1092 | E28: -6874.91 | F28: -1392587.418
B29: 2024-09-30 | C29: 140126.2098 | D29: 666028.1092 | E29: -4238.29 | F29: -730797.5992
B30: =EOMONTH(B29,1) -> 2024-10-31 | C30: 140126.2098 | D30: 666028.1092 | E30: -1591.13 | F30: -66360.62
C31: =SUM(C24:C30) -> 980883.4684 | D31: =SUM(D24:D30) -> 4662196.765 | E31: =SUM(E24:E30) -> -66360.62 | F31: =D31+E31+F23 -> -66360.62
D32: Amortization Rate
E33: =ROUND(F23/C31,2) -> -4.75 | F33: =F23 -> -4662196.765
D34: Interest Rate | E34: =ROUND(F31/C31,2) -> -0.07 | F34: =E31 -> -66360.62
D35: Rate Before RCF | E35: =SUM(E33:E34) -> -4.82 | F35: =SUM(F33:F34) -> -4728557.385
D36: Tariff Rate (Mar - Oct) | E36: =ROUND(E35*$F$2,2) -> -5.04
B39: Beginning Balance | F39: =D15 -> -13421046.07
B40: =EOMONTH(B30,1) -> 2024-11-30 | C40: =$C$24 -> 140126.2098 | D40: =-(C40/$C$45)*$F$39 -> 2684209.214 | E40: =ROUND((F39+(D40/2))*$E$22/12,2) -> -48315.77 | F40: =+F39+D40+E40 -> -10785152.62
B41: =EOMONTH(B40,1) -> 2024-12-31 | C41: 140126.2098 | D41: =-(C41/$C$45)*$F$39 -> 2684209.214 | E41: =ROUND((F40+(D41/2))*$E$22/12,2) -> -37772.19 | F41: =+F40+D41+E41 -> -8138715.601
B42: 2025-01-31 | C42: 140126.2098 | D42: =-(C42/$C$45)*$F$39 -> 2684209.214 | E42: =ROUND((F41+(D42/2))*$E$22/12,2) -> -27186.44 | F42: -5481692.827
B43: 2025-02-28 | C43: 140126.2098 | D43: =-(C43/$C$45)*$F$39 -> 2684209.214 | E43: -16558.35 | F43: -2814041.964
B44: 2025-03-31 | C44: 140126.2098 | D44: =-(C44/$C$45)*$F$39 -> 2684209.214 | E44: -5887.75 | F44: -135720.5
C45: =SUM(C40:C44) -> 700631.0488 | D45: =SUM(D40:D44) -> 13421046.07 | E45: =SUM(E40:E44) -> -135720.5 | F45: =D45+E45+F39 -> -135720.5
D47: Amortization Rate | E47: =ROUND(F39/C45,2) -> -19.16 | F47: =F39 -> -13421046.07
D48: Interest Rate | E48: =ROUND(F45/C45,2) -> -0.19 | F48: =E45 -> -135720.5
D49: Rate Before RCF | E49: =SUM(E47:E48) -> -19.35 | F49: =SUM(F47:F48) -> -13556766.57
D50: Tariff Rate (Nov - Feb) | E50: =ROUND(E49*$F$2,2) -> -20.23

Sheet Ben Amtz Calc - Sch 111
A1: Avista Utilities
A2: State of Washington | E2: RCF | F2: ='Conversion Factor'!E28 -> 1.045717
A3: Development of Amortization Rate
D5: 2024-04-30 | E5: =EOMONTH(D5,1) -> 2024-05-31 | F5: 2024-06-30 | G5: 2024-07-31 | H5: 2024-08-31 | I5: 2024-09-30 | J5: 2024-10-31 | K5: 2024-11-30 | L5: 2024-12-31 | M5: 2025-01-31 | N5: 2025-02-28 | O5: 2025-03-31 | P5: Total
C6: WA111 | D6: =Forecast!C60 -> 4256901.984 | E6: =Forecast!D60 -> 2651877.101 | F6: =Forecast!E60 -> 2043041.396 | G6: =Forecast!F60 -> 1709893.589 | H6: =Forecast!G60 -> 1882316.697 | I6: =Forecast!H60 -> 2374609.932 | J6: =Forecast!I60 -> 4941601.059 | K6: =Forecast!J60 -> 7611449.122 | L6: =Forecast!K60 -> 9680726.257 | M6: =Forecast!L60 -> 8878135.028 | N6: =Forecast!M60 -> 7757130.158 | O6: =Forecast!N60 -> 6256548.095 | P6: =SUM(D6:O6) -> 60044230.42
D8: Volumes | E8: % of Annual
C9: Apr- Oct | D9: =SUM(D6:J6) -> 19860241.76 | E9: =D9/$D$11 -> 0.3307602016
C10: Nov - Mar | D10: =SUM(K6:O6) -> 40183988.66 | E10: =D10/$D$11 -> 0.6692397984
D11: =D9+D10 -> 60044230.42
C13: Total Annual Benefits to be Allocated | D13: ='WA Gas - Sched 162'!J30 -> -10087123.01
C14: Apr- Oct Benefit | D14: =D13*E9 -> -3336418.84
C15: Nov - Mar Benefit | D15: =D13*E10 -> -6750704.17
B18: AMORTIZATION RATE CALCULATION
C20: Schedule 111 - Benefits to Pre 7/2021 Customers
C21: Customers | D21: Amortization & Deferral | E21: Interest | F21: Balance
E22: 0.048
B23: Beginning Balance | D23: Amortization | F23: ='Ben Amtz Calc - Sch 111'!D14 -> -3336418.84
B24: 2024-04-30 | C24: =Forecast!C44 -> 3426.809373 | D24: =-(C24/$C$31)*$F$23 -> 476631.2629 | E24: =ROUND((F23+(D24/2))*$E$22/12,2) -> -12392.41 | F24: =F23+D24+E24 -> -2872179.987
B25: =EOMONTH(B24,1) -> 2024-05-31 | C25: =Forecast!D44 -> 3426.809373 | D25: 476631.2629 | E25: =ROUND((F24+(D25/2))*$E$22/12,2) -> -10535.46 | F25: =+F24+D25+E25 -> -2406084.184
B26: =EOMONTH(B25,1) -> 2024-06-30 | C26: =Forecast!E44 -> 3426.809373 | D26: 476631.2629 | E26: -8671.07 | F26: =+F25+D26+E26 -> -1938123.992
B27: 2024-07-31 | C27: =Forecast!F44 -> 3426.809373 | D27: 476631.2629 | E27: -6799.23 | F27: -1468291.959
B28: 2024-08-31 | C28: =Forecast!G44 -> 3426.809373 | D28: 476631.2629 | E28: -4919.91 | F28: -996580.6058
B29: 2024-09-30 | C29: =Forecast!H44 -> 3426.809373 | D29: 476631.2629 | E29: -3033.06 | F29: -522982.4029
B30: =EOMONTH(B29,1) -> 2024-10-31 | C30: =Forecast!I44 -> 3426.809373 | D30: 476631.2629 | E30: -1138.67 | F30: -47489.81
C31: =SUM(C24:C30) -> 23987.66561 | D31: =SUM(D24:D30) -> 3336418.84 | E31: =SUM(E24:E30) -> -47489.81 | F31: =D31+E31+F23 -> -47489.81
D32: Amortization Rate
E33: =ROUND(F23/C31,2) -> -139.09 | F33: =F23 -> -3336418.84
D34: Interest Rate | E34: =ROUND(F31/C31,2) -> -1.98 | F34: =E31 -> -47489.81
D35: Rate Before RCF | E35: =SUM(E33:E34) -> -141.07 | F35: =SUM(F33:F34) -> -3383908.65
D36: Tariff Rate (Mar - Oct) | E36: =ROUND(E35*$F$2,2) -> -147.52
B39: Beginning Balance | F39: ='Ben Amtz Calc - Sch 111'!D15 -> -6750704.17
B40: =EOMONTH(B30,1) -> 2024-11-30 | C40: =Forecast!J44 -> 3426.809373 | D40: =-(C40/$C$45)*$F$39 -> 1350140.834 | E40: =ROUND((F39+(D40/2))*$E$22/12,2) -> -24302.54 | F40: =+F39+D40+E40 -> -5424865.876
B41: =EOMONTH(B40,1) -> 2024-12-31 | C41: =Forecast!K44 -> 3426.809373 | D41: =-(C41/$C$45)*$F$39 -> 1350140.834 | E41: =ROUND((F40+(D41/2))*$E$22/12,2) -> -18999.18 | F41: =+F40+D41+E41 -> -4093724.222
B42: 2025-01-31 | C42: =Forecast!L44 -> 3426.809373 | D42: =-(C42/$C$45)*$F$39 -> 1350140.834 | E42: =ROUND((F41+(D42/2))*$E$22/12,2) -> -13674.62 | F42: -2757258.008
B43: 2025-02-28 | C43: =Forecast!M44 -> 3426.809373 | D43: =-(C43/$C$45)*$F$39 -> 1350140.834 | E43: -8328.75 | F43: -1415445.924
B44: 2025-03-31 | C44: =Forecast!N44 -> 3426.809373 | D44: =-(C44/$C$45)*$F$39 -> 1350140.834 | E44: -2961.5 | F44: -68266.59
C45: =SUM(C40:C44) -> 17134.04687 | D45: =SUM(D40:D44) -> 6750704.17 | E45: =SUM(E40:E44) -> -68266.59 | F45: =D45+E45+F39 -> -68266.59
D47: Amortization Rate | E47: =ROUND(F39/C45,2) -> -393.99 | F47: =F39 -> -6750704.17
D48: Interest Rate | E48: =ROUND(F45/C45,2) -> -3.98 | F48: =E45 -> -68266.59
D49: Rate Before RCF | E49: =SUM(E47:E48) -> -397.97 | F49: =SUM(F47:F48) -> -6818970.76
D50: Tariff Rate (Nov - Feb) | E50: =ROUND(E49*$F$2,2) -> -416.16

Sheet Ben Amtz Calc - Sch 112-116
A1: Avista Utilities
A2: State of Washington | E2: RCF | F2: ='Conversion Factor'!E28 -> 1.045717
A3: Development of Amortization Rate
B6: AMORTIZATION RATE CALCULATION
C8: Schedule 112/116 - Benefits to Pre 7/2021 Customers
C9: Customers | D9: Amortization & Deferral | E9: Interest | F9: Balance
E10: 0.048
B11: Beginning Balance | D11: Amortization | F11: ='WA Gas - Sched 162'!N25 -> 0
B12: 2024-04-30 | C12: =Forecast!C46 -> 0 | D12: =-(C12/$C$24)*$F$11 ->  | E12: =ROUND((F11+(D12/2))*$E$10/12,2) ->  | F12: =F11+D12+E12 -> 
B13: =EOMONTH(B12,1) -> 2024-05-31 | C13: =Forecast!D46 -> 0 | D13: =-(C13/$C$24)*$F$11 ->  | E13: =ROUND((F12+(D13/2))*$E$10/12,2) ->  | F13: =+F12+D13+E13 -> 
B14: =EOMONTH(B13,1) -> 2024-06-30 | C14: =Forecast!E46 -> 0 | F14: =+F13+D14+E14 -> 
B15: 2024-07-31 | C15: =Forecast!F46 -> 0
B16: 2024-08-31 | C16: =Forecast!G46 -> 0
B17: 2024-09-30 | C17: =Forecast!H46 -> 0
B18: 2024-10-31 | C18: =Forecast!I46 -> 0
B19: 2024-11-30 | C19: =Forecast!J46 -> 0
B20: 2024-12-31 | C20: =Forecast!K46 -> 0
B21: 2025-01-31 | C21: =Forecast!L46 -> 0
B22: 2025-02-28 | C22: =Forecast!M46 -> 0
B23: 2025-03-31 | C23: =Forecast!N46 -> 0 | F23: =+F22+D23+E23 -> 
C24: =SUM(C12:C23) -> 0 | D24: =SUM(D12:D23) ->  | E24: =SUM(E12:E23) ->  | F24: =D24+E24+F11 -> 
D26: Amortization Rate | E26: =ROUND(F11/C24,2) ->  | F26: =F11 -> 0
D27: Interest Rate | E27: =ROUND(F23/C24,2) ->  | F27: =E24 -> 
D28: Rate Before RCF | E28: =SUM(E26:E27) ->  | F28: =SUM(F26:F27) -> 
D29: Tariff Rate | E29: =ROUND(E28*$F$2,2) -> 

Sheet Ben Amtz Calc - Sch 131-132
A1: Avista Utilities
A2: State of Washington | E2: RCF | F2: ='Conversion Factor'!E28 -> 1.045717
A3: Development of Amortization Rate
B6: AMORTIZATION RATE CALCULATION
C8: Schedule 131/132 - Benefits to Pre 7/2021 Customers
C9: Customers | D9: Amortization & Deferral | E9: Interest | F9: Balance
E10: 0.048
B11: Beginning Balance | D11: Amortization | F11: ='WA Gas - Sched 162'!R30 -> -441647.8555
B12: 2024-04-30 | C12: =Forecast!C48 -> 4 | D12: =-(C12/$C$24)*$F$11 -> 36803.98796 | E12: =ROUND((F11+(D12/2))*$E$10/12,2) -> -1692.98 | F12: =F11+D12+E12 -> -406536.8475
B13: =EOMONTH(B12,1) -> 2024-05-31 | C13: =Forecast!D48 -> 4 | D13: =-(C13/$C$24)*$F$11 -> 36803.98796 | E13: =ROUND((F12+(D13/2))*$E$10/12,2) -> -1552.54 | F13: =+F12+D13+E13 -> -371285.3996
B14: =EOMONTH(B13,1) -> 2024-06-30 | C14: =Forecast!E48 -> 4 | D14: 36803.98796 | E14: -1411.53 | F14: =+F13+D14+E14 -> -335892.9416
B15: 2024-07-31 | C15: =Forecast!F48 -> 4 | D15: 36803.98796 | E15: -1269.96 | F15: -300358.9137
B16: 2024-08-31 | C16: =Forecast!G48 -> 4 | D16: 36803.98796 | E16: -1127.83 | F16: -264682.7557
B17: 2024-09-30 | C17: =Forecast!H48 -> 4 | D17: 36803.98796 | E17: -985.12 | F17: -228863.8877
B18: 2024-10-31 | C18: =Forecast!I48 -> 4 | D18: 36803.98796 | E18: -841.85 | F18: -192901.7498
B19: 2024-11-30 | C19: =Forecast!J48 -> 4 | D19: 36803.98796 | E19: -698 | F19: -156795.7618
B20: 2024-12-31 | C20: =Forecast!K48 -> 4 | D20: 36803.98796 | E20: -553.58 | F20: -120545.3539
B21: 2025-01-31 | C21: =Forecast!L48 -> 4 | D21: 36803.98796 | E21: -408.57 | F21: -84149.93592
B22: 2025-02-28 | C22: =Forecast!M48 -> 4 | D22: 36803.98796 | E22: -262.99 | F22: -47608.93796
B23: 2025-03-31 | C23: =Forecast!N48 -> 4 | D23: 36803.98796 | E23: -116.83 | F23: =+F22+D23+E23 -> -10921.78
C24: =SUM(C12:C23) -> 48 | D24: =SUM(D12:D23) -> 441647.8555 | E24: =SUM(E12:E23) -> -10921.78 | F24: =D24+E24+F11 -> -10921.78
D26: Amortization Rate | E26: =ROUND(F11/C24,2) -> -9201 | F26: =F11 -> -441647.8555
D27: Interest Rate | E27: =ROUND(F23/C24,2) -> -227.54 | F27: =E24 -> -10921.78
D28: Rate Before RCF | E28: =SUM(E26:E27) -> -9428.54 | F28: =SUM(F26:F27) -> -452569.6355
D29: Tariff Rate | E29: =ROUND(E28*$F$2,2) -> -9859.58

Sheet Ben Amtz Calc - Sch 146
A1: Avista Utilities
A2: State of Washington | E2: RCF | F2: ='Conversion Factor'!E28 -> 1.045717
A3: Development of Amortization Rate
B6: AMORTIZATION RATE CALCULATION
C8: Schedule 146 - Benefits to Pre 7/2021 Customers
C9: Customers | D9: Amortization & Deferral | E9: Interest | F9: Balance
E10: 0.048
B11: Beginning Balance | D11: Amortization | F11: ='WA Gas - Sched 162'!U30 -> -3650853.273
B12: 2024-04-30 | C12: =Forecast!C49 -> 33 | D12: =-(C12/$C$24)*$F$11 -> 304237.7728 | E12: =ROUND((F11+(D12/2))*$E$10/12,2) -> -13994.94 | F12: =F11+D12+E12 -> -3360610.441
B13: =EOMONTH(B12,1) -> 2024-05-31 | C13: =Forecast!D49 -> 33 | D13: =-(C13/$C$24)*$F$11 -> 304237.7728 | E13: =ROUND((F12+(D13/2))*$E$10/12,2) -> -12833.97 | F13: =+F12+D13+E13 -> -3069206.638
B14: =EOMONTH(B13,1) -> 2024-06-30 | C14: =Forecast!E49 -> 33 | D14: 304237.7728 | E14: -11668.35 | F14: =+F13+D14+E14 -> -2776637.215
B15: 2024-07-31 | C15: =Forecast!F49 -> 33 | D15: 304237.7728 | E15: -10498.07 | F15: -2482897.512
B16: 2024-08-31 | C16: =Forecast!G49 -> 33 | D16: 304237.7728 | E16: -9323.11 | F16: -2187982.849
B17: 2024-09-30 | C17: =Forecast!H49 -> 33 | D17: 304237.7728 | E17: -8143.46 | F17: -1891888.537
B18: 2024-10-31 | C18: =Forecast!I49 -> 33 | D18: 304237.7728 | E18: -6959.08 | F18: -1594609.844
B19: 2024-11-30 | C19: =Forecast!J49 -> 33 | D19: 304237.7728 | E19: -5769.96 | F19: -1296142.031
B20: 2024-12-31 | C20: =Forecast!K49 -> 33 | D20: 304237.7728 | E20: -4576.09 | F20: -996480.3483
B21: 2025-01-31 | C21: =Forecast!L49 -> 33 | D21: 304237.7728 | E21: -3377.45 | F21: -695620.0256
B22: 2025-02-28 | C22: =Forecast!M49 -> 33 | D22: 304237.7728 | E22: -2174 | F22: -393556.2528
B23: 2025-03-31 | C23: =Forecast!N49 -> 33 | D23: 304237.7728 | E23: -965.75 | F23: =+F22+D23+E23 -> -90284.23
C24: =SUM(C12:C23) -> 396 | D24: =SUM(D12:D23) -> 3650853.273 | E24: =SUM(E12:E23) -> -90284.23 | F24: =D24+E24+F11 -> -90284.23
D26: Amortization Rate | E26: =ROUND(F11/C24,2) -> -9219.33 | F26: =F11 -> -3650853.273
D27: Interest Rate | E27: =ROUND(F23/C24,2) -> -227.99 | F27: =E24 -> -90284.23
D28: Rate Before RCF | E28: =SUM(E26:E27) -> -9447.32 | F28: =SUM(F26:F27) -> -3741137.503
D29: Tariff Rate | E29: =ROUND(E28*$F$2,2) -> -9879.22

Sheet Conversion Factor
A1: AVISTA UTILITIES
A2: Revenue Conversion Factor
A3: Washington - Natural Gas System
A4: TWELVE MONTHS ENDED SEPTEMBER 30, 2021
A6: Line
A7: No. | C7: Description | E7: Factor
A9: 1 | C9: Revenues | E9: 1
C11: Expense:
A12: 2 | C12: Uncollectibles | E12: 0.003326
A14: 3 | C14: Commission Fees | E14: 0.002
A16: 4 | C16: Washington Excise Tax | E16: 0.038392
A18: 5 | C18: Franchise Fees | E18: 0
A20: 6 | C20: Total Expense | E20: =E12+E14+E16+E18 -> 0.043718
A22: 7 | C22: Net Operating Income Before FIT | E22: =E9-E20 -> 0.956282
A24: 8 | C24: Federal Income Tax @ 21% | E24: =E22*21% -> 0.20081922
A26: 9 | C26: REVENUE CONVERSION FACTOR | E26: =E22-E24 -> 0.75546278
C28: REVENUE GROSS UP: | D28: 1/(1-.043718) | E28: =ROUND(1/(1-E20),6) -> 1.045717
A30: 2022 GRC Conversion Factor (UG-220054)

Sheet Revenue - current rates (hidden)
A3: Forecasted Usage | D3: 2023-01-31 | E3: =EOMONTH(D3,1) -> 2023-02-28 | F3: 2022-03-01 | G3: 2022-04-01 | H3: 2022-05-01 | I3: 2022-06-01 | J3: 2022-07-01 | K3: 2022-08-01 | L3: 2022-09-01 | M3: 2022-10-01 | N3: 2022-11-01 | O3: 2022-12-01 | P3: 2023-01-01 | Q3: 2023-02-01 | R3: 2023-03-01 | S3: 2023-04-01 | T3: 2023-05-01 | U3: 2023-06-01 | V3: 2023-07-01 | W3: 2023-08-01 | X3: 2023-09-01 | Y3: 2023-10-01 | Z3: 2023-11-01 | AA3: 2023-12-01 | AB3: 2024-01-01 | AC3: 2024-02-01 | AD3: 2024-03-01 | AE3: 2024-04-01 | AF3: 2024-05-01 | AG3: 2024-06-01 | AH3: 2024-07-01 | AJ3: 2022-2023 | AK3: 2023-2024
B4: Small Service Schedule 101 | G4: =G38 -> 0 | H4: =H38 -> 5070610.553 | I4: 3170130.372 | J4: 1812771.893 | K4: 2073438.084 | L4: 2968240.566 | M4: 9254547.346 | N4: 17143580.54 | O4: 26127031.46 | P4: 23816315.71 | Q4: 20619339.57 | R4: 16091512.44 | S4: 9894923.265 | T4: 5199750.493 | U4: 2945533.482 | V4: 2102810.077 | W4: 1903280.03 | X4: 3089788.902 | Y4: 8963927.346 | Z4: 17127558.92 | AA4: 25959555.35 | AB4: 23947467.54 | AC4: 20801110.46 | AD4: 16397869.91 | AE4: 10115068.39 | AF4: 5223536.623 | AG4: 3184810.345 | AH4: 2109689.422 | AJ4: =SUM(K4:V4) -> 138237023 | AK4: =SUM(W4:AH4) -> 138823663.2
B5: Large Service Schedule 111 | G5: =G39+G40 -> 0 | H5: =H39+H40 -> 2588626.593 | I5: 2011700.368 | J5: 1683906.77 | K5: 1742851.737 | L5: 2322414.869 | M5: 4924835.853 | N5: 7252306.499 | O5: 9372326.108 | P5: 8698800.567 | Q5: 7582269.989 | R5: 6291462.545 | S5: 4212964.475 | T5: 2544237.503 | U5: 1995612.28 | V5: 1674561.472 | W5: 1758920.354 | X5: 2348799.11 | Y5: 5019484.637 | Z5: 7361177.029 | AA5: 9522983.6 | AB5: 8825720.997 | AC5: 7695576.567 | AD5: 6390946.69 | AE5: 4285273.904 | AF5: 2590001.983 | AG5: 2037652.69 | AH5: 1698383.876 | AJ5: =SUM(K5:V5) -> 58614643.9 | AK5: =SUM(W5:AH5) -> 59534921.44
B6: Interrupt Service Schedule 131 | G6: =G42 -> 0 | H6: 45178.59204 | I6: 37951.01688 | J6: 36160.1912 | K6: 32707.67627 | L6: 40862.34537 | M6: 86622.76848 | N6: 113518.4873 | O6: 132358.8511 | P6: 118703.3352 | Q6: 106925.7984 | R6: 91577.37445 | S6: 66054.92839 | T6: 46918.89913 | U6: 39004.3011 | V6: 35314.2182 | W6: =W42 -> 31110.61143 | X6: 36840.78568 | Y6: 81394.07528 | Z6: 109609.0118 | AA6: 131031.0736 | AB6: 120036.6008 | AC6: 110133.3261 | AD6: 92090.46008 | AE6: 67113.19261 | AF6: 47922.48612 | AG6: 40123.22788 | AH6: 35752.29617 | AJ6: 910568.9833 | AK6: 903157.1475
B7: Transport Service Schedule 146 | G7: 0 | H7: =H43 -> 2825661 | I7: 2478607 | J7: 2304662 | K7: 2215419 | L7: 2255889 | M7: 2418396 | N7: 2921288 | O7: 3395034 | P7: 3728560 | Q7: 3846569 | R7: 3428664 | S7: 3327185 | T7: 2874605 | U7: 2555500 | V7: 2358850 | W7: =W43 -> 2223456 | X7: 2315682 | Y7: 2366203 | Z7: 2988871 | AA7: 3335564 | AB7: 3705380 | AC7: 3829526 | AD7: 3438126 | AE7: 3350365 | AF7: 2875023 | AG7: 2538856 | AH7: 2329248
B8: Special Contract Transport | G8: 0 | H8: 3408896 | I8: 3127311 | J8: 2936673 | K8: 2793896 | L8: 2920172 | M8: 2996541 | N8: 3546647 | O8: 3884589 | P8: 4299759 | Q8: 4338868 | R8: 3850822 | S8: 3830134 | T8: 3428840 | U8: 3134594 | V8: 2964348 | W8: =W44 -> 2806056 | X8: 2916767 | Y8: 3005728 | Z8: 3551884 | AA8: 3896302 | AB8: 4312962 | AC8: 4350528 | AD8: 3861329 | AE8: 3835979 | AF8: 3436820 | AG8: 3144062 | AH8: 2974418
A9: Total Forecasted Usage | D9: =SUM(D4:D8) -> 0 | E9: 0 | F9: 0 | G9: 0 | H9: 13938972.74 | I9: 10825699.76 | J9: 8774173.854 | K9: 8858312.497 | L9: 10507578.78 | M9: 19680942.97 | N9: 30977340.52 | O9: 42911339.42 | P9: 40662138.61 | Q9: 36493972.36 | R9: 29754038.36 | S9: 21331261.67 | T9: 14094351.89 | U9: 10670244.06 | V9: 9135883.767 | W9: 8722822.995 | X9: 10707877.8 | Y9: 19436737.06 | Z9: 31139099.96 | AA9: 42845436.03 | AB9: 40911567.13 | AC9: 36786874.35 | AD9: 30180362.06 | AE9: 21653799.49 | AF9: 14173304.09 | AG9: 10945504.26 | AH9: 9147491.594 | AJ9: =SUM(AJ4:AJ8) -> 197762235.9 | AK9: =SUM(AK4:AK8) -> 199261741.8 | AL9: =(AK9-AJ9)/AJ9 -> 0.007582367285
AJ10: ='WA Gas - Sched 162'!C9 -> 220376850.7
A12: DSM Rates
B13: Small Service Schedule 101 | D13: ='WA Gas - Sched 162'!#REF! ->  | E13: ='WA Gas - Sched 162'!#REF! ->  | F13: ='WA Gas - Sched 162'!#REF! ->  | G13: ='WA Gas - Sched 162'!#REF! ->  | H13: ='WA Gas - Sched 162'!#REF! ->  | I13: ='WA Gas - Sched 162'!#REF! ->  | J13: ='WA Gas - Sched 162'!#REF! ->  | K13: ='WA Gas - Sched 162'!#REF! ->  | L13: ='WA Gas - Sched 162'!#REF! ->  | M13: ='WA Gas - Sched 162'!#REF! ->  | N13: ='WA Gas - Sched 162'!#REF! ->  | O13: ='WA Gas - Sched 162'!#REF! ->  | P13: ='WA Gas - Sched 162'!#REF! ->  | Q13: ='WA Gas - Sched 162'!#REF! ->  | R13: ='WA Gas - Sched 162'!#REF! ->  | S13: ='WA Gas - Sched 162'!#REF! ->  | T13: ='WA Gas - Sched 162'!#REF! ->  | U13: ='WA Gas - Sched 162'!#REF! ->  | V13: ='WA Gas - Sched 162'!#REF! ->  | W13: ='WA Gas - Sched 162'!#REF! ->  | X13: ='WA Gas - Sched 162'!#REF! ->  | Y13: ='WA Gas - Sched 162'!#REF! ->  | Z13: ='WA Gas - Sched 162'!#REF! ->  | AA13: ='WA Gas - Sched 162'!#REF! ->  | AB13: ='WA Gas - Sched 162'!#REF! ->  | AC13: ='WA Gas - Sched 162'!#REF! ->  | AD13: ='WA Gas - Sched 162'!#REF! ->  | AE13: ='WA Gas - Sched 162'!#REF! ->  | AF13: ='WA Gas - Sched 162'!#REF! ->  | AG13: ='WA Gas - Sched 162'!#REF! ->  | AH13: ='WA Gas - Sched 162'!#REF! -> 
B14: Large Service Schedule 111 | D14: ='WA Gas - Sched 162'!#REF! ->  | E14: ='WA Gas - Sched 162'!#REF! ->  | F14: ='WA Gas - Sched 162'!#REF! ->  | G14: ='WA Gas - Sched 162'!#REF! ->  | H14: ='WA Gas - Sched 162'!#REF! ->  | I14: ='WA Gas - Sched 162'!#REF! ->  | J14: ='WA Gas - Sched 162'!#REF! ->  | K14: ='WA Gas - Sched 162'!#REF! ->  | L14: ='WA Gas - Sched 162'!#REF! ->  | M14: ='WA Gas - Sched 162'!#REF! ->  | N14: ='WA Gas - Sched 162'!#REF! ->  | O14: ='WA Gas - Sched 162'!#REF! ->  | P14: ='WA Gas - Sched 162'!#REF! ->  | Q14: ='WA Gas - Sched 162'!#REF! ->  | R14: ='WA Gas - Sched 162'!#REF! ->  | S14: ='WA Gas - Sched 162'!#REF! ->  | T14: ='WA Gas - Sched 162'!#REF! ->  | U14: ='WA Gas - Sched 162'!#REF! ->  | V14: ='WA Gas - Sched 162'!#REF! ->  | W14: ='WA Gas - Sched 162'!#REF! ->  | X14: ='WA Gas - Sched 162'!#REF! ->  | Y14: ='WA Gas - Sched 162'!#REF! ->  | Z14: ='WA Gas - Sched 162'!#REF! ->  | AA14: ='WA Gas - Sched 162'!#REF! ->  | AB14: ='WA Gas - Sched 162'!#REF! ->  | AC14: ='WA Gas - Sched 162'!#REF! ->  | AD14: ='WA Gas - Sched 162'!#REF! ->  | AE14: ='WA Gas - Sched 162'!#REF! ->  | AF14: ='WA Gas - Sched 162'!#REF! ->  | AG14: ='WA Gas - Sched 162'!#REF! ->  | AH14: ='WA Gas - Sched 162'!#REF! -> 
B15: Interrupt Service Schedule 131 | D15: ='WA Gas - Sched 162'!#REF! ->  | E15: ='WA Gas - Sched 162'!#REF! ->  | F15: ='WA Gas - Sched 162'!#REF! ->  | G15: ='WA Gas - Sched 162'!#REF! ->  | H15: ='WA Gas - Sched 162'!#REF! ->  | I15: ='WA Gas - Sched 162'!#REF! ->  | J15: ='WA Gas - Sched 162'!#REF! ->  | K15: ='WA Gas - Sched 162'!#REF! ->  | L15: ='WA Gas - Sched 162'!#REF! ->  | M15: ='WA Gas - Sched 162'!#REF! ->  | N15: ='WA Gas - Sched 162'!#REF! ->  | O15: ='WA Gas - Sched 162'!#REF! ->  | P15: ='WA Gas - Sched 162'!#REF! ->  | Q15: ='WA Gas - Sched 162'!#REF! ->  | R15: ='WA Gas - Sched 162'!#REF! ->  | S15: ='WA Gas - Sched 162'!#REF! ->  | T15: ='WA Gas - Sched 162'!#REF! ->  | U15: ='WA Gas - Sched 162'!#REF! ->  | V15: ='WA Gas - Sched 162'!#REF! ->  | W15: ='WA Gas - Sched 162'!#REF! ->  | X15: ='WA Gas - Sched 162'!#REF! ->  | Y15: ='WA Gas - Sched 162'!#REF! ->  | Z15: ='WA Gas - Sched 162'!#REF! ->  | AA15: ='WA Gas - Sched 162'!#REF! ->  | AB15: ='WA Gas - Sched 162'!#REF! ->  | AC15: ='WA Gas - Sched 162'!#REF! ->  | AD15: ='WA Gas - Sched 162'!#REF! ->  | AE15: ='WA Gas - Sched 162'!#REF! ->  | AF15: ='WA Gas - Sched 162'!#REF! ->  | AG15: ='WA Gas - Sched 162'!#REF! ->  | AH15: ='WA Gas - Sched 162'!#REF! -> 
B16: Transport Service Schedule 146
B17: Special Contract Transport
B18: Total
A21: Gross DSM Revenue | D21: =D3 -> 2023-01-31 | E21: 2023-02-28 | F21: 2022-03-01 | G21: 2022-04-01 | H21: 2022-05-01 | I21: 2022-06-01 | J21: 2022-07-01 | K21: 2022-08-01 | L21: 2022-09-01 | M21: 2022-10-01 | N21: 2022-11-01 | O21: 2022-12-01 | P21: 2023-01-01 | Q21: 2023-02-01 | R21: 2023-03-01 | S21: 2023-04-01 | T21: 2023-05-01 | U21: 2023-06-01 | V21: 2023-07-01 | W21: 2023-08-01 | X21: 2023-09-01 | Y21: 2023-10-01 | Z21: 2023-11-01 | AA21: 2023-12-01 | AB21: 2024-01-01 | AC21: 2024-02-01 | AD21: 2024-03-01 | AE21: 2024-04-01 | AF21: 2024-05-01 | AG21: 2024-06-01 | AH21: 2024-07-01
B22: Small Service Schedule 101 | D22: =D4*D13 -> 
B23: Large Service Schedule 111 | D23: =D5*D14 -> 
B24: Interrupt Service Schedule 131 | D24: =D6*D15 -> 
B25: Transport Service Schedule 146
B26: Special Contract Transport
B27: Total | D27: =SUM(D22:D26) -> 
A29: Net DSM Revenue | C29: =RCF!C23 -> 0.956282 | D29: =D21 -> 2023-01-31 | E29: =E21 -> 2023-02-28 | F29: 2022-03-01 | G29: 2022-04-01 | H29: 2022-05-01 | I29: 2022-06-01 | J29: 2022-07-01 | K29: 2022-08-01 | L29: 2022-09-01 | M29: 2022-10-01 | N29: 2022-11-01 | O29: 2022-12-01 | P29: 2023-01-01 | Q29: 2023-02-01 | R29: =R21 -> 2023-03-01 | S29: 2023-04-01 | T29: 2023-05-01 | U29: 2023-06-01 | V29: 2023-07-01 | W29: =W21 -> 2023-08-01 | X29: 2023-09-01 | Y29: 2023-10-01 | Z29: 2023-11-01 | AA29: 2023-12-01 | AB29: 2024-01-01 | AC29: 2024-02-01 | AD29: 2024-03-01 | AE29: 2024-04-01 | AF29: 2024-05-01 | AG29: 2024-06-01 | AH29: =AH21 -> 2024-07-01
B30: Small Service Schedule 101 | D30: =D22*$C$29 ->  | E30: =E22*$C$29 ->  | R30: =R22*$C$29 ->  | U30: =U22*$C$29 ->  | V30: =V22*$C$29 ->  | W30: =W22*$C$29 ->  | AH30: =AH22*$C$29 -> 
B31: Large Service Schedule 111 | D31: =D23*$C$29 ->  | R31: =R23*$C$29 ->  | T31: =T23*$C$29 ->  | W31: =W23*$C$29 ->  | AH31: =AH23*$C$29 -> 
B32: Interrupt Service Schedule 131 | D32: =D24*$C$29 ->  | T32: =T24*$C$29 ->  | U32: =U24*$C$29 -> 
B33: Transport Service Schedule 146
B34: Special Contract Transport
B35: Total | D35: =SUM(D30:D34) ->  | AJ35: =SUM(D35:V35) ->  | AK35: =AJ35+SUM('DSM Balance'!G3:Y3) -> 
B38: WA101 | H38: 5070610.553 | I38: 3170130.372 | J38: 1812771.893 | K38: 2073438.084 | L38: 2968240.566 | M38: 9254547.346 | N38: 17143580.54 | O38: 26127031.46 | P38: 23816315.71 | Q38: 20619339.57 | R38: 16091512.44 | S38: 9894923.265 | T38: 5199750.493 | U38: 2945533.482 | V38: 2102810.077 | W38: 1903280.03 | X38: 3089788.902 | Y38: 8963927.346 | Z38: 17127558.92 | AA38: 25959555.35 | AB38: 23947467.54 | AC38: 20801110.46 | AD38: 16397869.91 | AE38: 10115068.39 | AF38: 5223536.623 | AG38: 3184810.345 | AH38: 2109689.422
B39: WA111 | H39: 2588626.593 | I39: 2011700.368 | J39: 1683906.77 | K39: 1742851.737 | L39: 2322414.869 | M39: 4924835.853 | N39: 7252306.499 | O39: 9372326.108 | P39: 8698800.567 | Q39: 7582269.989 | R39: 6291462.545 | S39: 4212964.475 | T39: 2544237.503 | U39: 1995612.28 | V39: 1674561.472 | W39: 1758920.354 | X39: 2348799.11 | Y39: 5019484.637 | Z39: 7361177.029 | AA39: 9522983.6 | AB39: 8825720.997 | AC39: 7695576.567 | AD39: 6390946.69 | AE39: 4285273.904 | AF39: 2590001.983 | AG39: 2037652.69 | AH39: 1698383.876
B40: WA112 | H40: 0 | I40: 0 | J40: 0 | K40: 0 | L40: 0 | M40: 0 | N40: 0 | O40: 0 | P40: 0 | Q40: 0 | R40: 0 | S40: 0 | T40: 0 | U40: 0 | V40: 0 | W40: 0 | X40: 0 | Y40: 0 | Z40: 0 | AA40: 0 | AB40: 0 | AC40: 0 | AD40: 0 | AE40: 0 | AF40: 0 | AG40: 0 | AH40: 0
B41: WA121 -Discontinued | H41: 0 | I41: 0 | J41: 0 | K41: 0 | L41: 0 | M41: 0 | N41: 0 | O41: 0 | P41: 0 | Q41: 0 | R41: 0 | S41: 0 | T41: 0 | U41: 0 | V41: 0 | W41: 0 | X41: 0 | Y41: 0 | Z41: 0 | AA41: 0 | AB41: 0 | AC41: 0 | AD41: 0 | AE41: 0 | AF41: 0 | AG41: 0 | AH41: 0
B42: WA132 | H42: 45178.59204 | I42: 37951.01688 | J42: 36160.1912 | K42: 32707.67627 | L42: 40862.34537 | M42: 86622.76848 | N42: 113518.4873 | O42: 132358.8511 | P42: 118703.3352 | Q42: 106925.7984 | R42: 91577.37445 | S42: 66054.92839 | T42: 46918.89913 | U42: 39004.3011 | V42: 35314.2182 | W42: 31110.61143 | X42: 36840.78568 | Y42: 81394.07528 | Z42: 109609.0118 | AA42: 131031.0736 | AB42: 120036.6008 | AC42: 110133.3261 | AD42: 92090.46008 | AE42: 67113.19261 | AF42: 47922.48612 | AG42: 40123.22788 | AH42: 35752.29617
B43: WA146 | H43: 2825661 | I43: 2478607 | J43: 2304662 | K43: 2215419 | L43: 2255889 | M43: 2418396 | N43: 2921288 | O43: 3395034 | P43: 3728560 | Q43: 3846569 | R43: 3428664 | S43: 3327185 | T43: 2874605 | U43: 2555500 | V43: 2358850 | W43: 2223456 | X43: 2315682 | Y43: 2366203 | Z43: 2988871 | AA43: 3335564 | AB43: 3705380 | AC43: 3829526 | AD43: 3438126 | AE43: 3350365 | AF43: 2875023 | AG43: 2538856 | AH43: 2329248
B44: WA148 | H44: 3408896 | I44: 3127311 | J44: 2936673 | K44: 2793896 | L44: 2920172 | M44: 2996541 | N44: 3546647 | O44: 3884589 | P44: 4299759 | Q44: 4338868 | R44: 3850822 | S44: 3830134 | T44: 3428840 | U44: 3134594 | V44: 2964348 | W44: 2806056 | X44: 2916767 | Y44: 3005728 | Z44: 3551884 | AA44: 3896302 | AB44: 4312962 | AC44: 4350528 | AD44: 3861329 | AE44: 3835979 | AF44: 3436820 | AG44: 3144062 | AH44: 2974418
H47: =SUM(H38:H44)-H9 -> 0 | I47: 0 | J47: 0 | K47: 0 | L47: 0 | M47: 0 | N47: 0 | O47: 0 | P47: 0 | Q47: 0 | R47: 0 | S47: 0 | T47: 0 | U47: 0 | V47: 0 | W47: 0 | X47: 0 | Y47: 0 | Z47: 0 | AA47: 0 | AB47: 0 | AC47: 0 | AD47: 0 | AE47: 0 | AF47: 0 | AG47: 0 | AH47: 0

Sheet DSM Balance (hidden)
A1: End of July 2022 Balance | B1: =M8 ->  | C1: Surcharge/(Rebate) | M1: 2022 | Y1: =M1+1 -> 2023 | AK1: =Y1+1 -> 2024
A2: Aug 2022 - July 2024 Expenditure Budget | B2: =SUM(N4:AK4) -> 14417018.18 | F2: End December | G2: End January | H2: End February | I2: End March | J2: End April | K2: End May | L2: End June | M2: End July | N2: End August | O2: End September | P2: End October | Q2: End November | R2: End December | S2: End January | T2: End February | U2: End March | V2: End April | W2: End May | X2: End June | Y2: End July | Z2: End August | AA2: End September | AB2: End October | AC2: End November | AD2: End December | AE2: End January | AF2: End February | AG2: End March | AH2: End April | AI2: End May | AJ2: End June | AK2: End July
A3: Total Projected DSM Balance + Expenditures | B3: =B1+B2 ->  | E3: Expected gas tariff rider revenue | K3: =-'Revenue - current rates'!H35 ->  | L3: =-'Revenue - current rates'!I35 ->  | M3: =-'Revenue - current rates'!J35 ->  | N3: =-'Revenue - current rates'!K35 ->  | O3: =-'Revenue - current rates'!L35 ->  | P3: =-'Revenue - current rates'!M35 ->  | Q3: =-'Revenue - current rates'!N35 ->  | R3: =-'Revenue - current rates'!O35 ->  | S3: =-'Revenue - current rates'!P35 ->  | T3: =-'Revenue - current rates'!Q35 ->  | U3: =-'Revenue - current rates'!R35 ->  | V3: =-'Revenue - current rates'!S35 ->  | W3: =-'Revenue - current rates'!T35 ->  | X3: =-'Revenue - current rates'!U35 ->  | Y3: =-'Revenue - current rates'!V35 ->  | Z3: =-'Revenue - current rates'!W35 ->  | AA3: =-'Revenue - current rates'!X35 ->  | AB3: =-'Revenue - current rates'!Y35 ->  | AC3: =-'Revenue - current rates'!Z35 ->  | AD3: =-'Revenue - current rates'!AA35 ->  | AE3: =-'Revenue - current rates'!AB35 ->  | AF3: =-'Revenue - current rates'!AC35 ->  | AG3: =-'Revenue - current rates'!AD35 ->  | AH3: =-'Revenue - current rates'!AE35 ->  | AI3: =-'Revenue - current rates'!AF35 ->  | AJ3: =-'Revenue - current rates'!AG35 ->  | AK3: =-'Revenue - current rates'!AH35 -> 
E4: Expected DSM cash expenditures | K4: 484214.8226 | L4: 471091.1526 | M4: 454553.1026 | N4: 647281.9526 | O4: 572621.8926 | P4: 383058.2326 | Q4: 615456.6426 | R4: 854927.3926 | S4: 609493.0676 | T4: 477237.0876 | U4: 840961.7376 | V4: 440910.8005 | W4: 549061.1105 | X4: 535937.4405 | Y4: 519399.3905 | Z4: 712128.2405 | AA4: 637468.1805 | AB4: 447904.5205 | AC4: 680302.9305 | AD4: 919773.6805 | AE4: 609539.6905 | AF4: 477283.7105 | AG4: 840961.7376 | AH4: 440910.8005 | AI4: 549061.1105 | AJ4: =X4 -> 535937.4405 | AK4: =Y4 -> 519399.3905
A5: Net Revenue Projected to be Recovered | B5: =SUM(N3:AK3) ->  | C5: Aug 2022 - July 2024 | E5: Accounting Adjustment
E6: Net change in balance | K6: =K3+K4 ->  | L6: =L3+L4 ->  | M6: =M3+M4 ->  | N6: =N3+N4 ->  | Z6: =Z3+Z4 -> 
A7: Total Projected DSM Balance (July 2024) | B7: =B3+B5 ->  | C7: Underfunded (Surcharge)
E8: Gas Tariff rider balance | J8: 1303878.41 | K8: =K6+J8 ->  | L8: =L6+K8 ->  | M8: =M6+L8 ->  | N8: =N6+M8 ->  | O8: =O6+N8 ->  | P8: =P6+O8 ->  | Q8: =Q6+P8 ->  | R8: =R6+Q8 ->  | S8: =S6+R8 ->  | T8: =T6+S8 ->  | U8: =U6+T8 ->  | V8: =V6+U8 ->  | W8: =W6+V8 ->  | X8: =X6+W8 ->  | Y8: =Y6+X8 ->  | Z8: =Z6+Y8 -> 
A12: August 2022 - July 2024
A13: DSM Revenue | B13: =SUM(N3:Y3) ->  | E13: 2015 Washington gas DSM budget | G13: CY 2015 expected expenditures (From DSM Business Plan)
A14: DSM Expense | B14: =SUM(N4:Y4) -> 7046346.748 | E14: 2016 Washington gas DSM budget | G14: CY 2016 expected expenditures
B15: =B13+B14 ->  | E15: 2017 Washington gas DSM budget | G15: CY 2016 expected expenditures + 2%
E16: 2018 Washington gas DSM budget | G16: CY 2017 expected expenditures + 2%

Sheet Base Revenue (hidden)
A1: AVISTA UTILITIES | L1: This worksheet pulls data from 'Pres & Prop Rev' tab.
A2: WASHINGTON NATURAL GAS
A3: PROPOSED INCREASE BY SERVICE SCHEDULE
A4: 12 MONTHS ENDED DECEMBER 31, 2019
A5: (000s of Dollars)
A6: From UG-200901 Compliance Filing, Attachment 2, Page 1
D8: Base Tariff | F8: Base Tariff | G8: Base | H8: Total Billed | J8: Percent | O8: Present
D9: Revenue | E9: Final | F9: Revenue | G9: Tariff | H9: Revenue | I9: Final | J9: Increase | K9: Gas | M9: Margin | O9: Margin
A10: Line | B10: Type of | C10: Schedule | D10: Under Present | E10: General | F10: Under Proposed | G10: Percent | H10: at Present | I10: General | J10: on Billed | K10: Costs | M10: Increase | O10: Revenue
A11: No. | B11: Service | C11: Number | D11: Rates(1) | E11: Change | F11: Rates | G11: Increase | H11: Rates (2) | I11: Change | J11: Revenue
B12: (a) | C12: (b) | D12: (c) | E12: (d) | F12: (e) | G12: (f) | H12: (g) | I12: (i) | J12: (j)
A14: 1 | B14: General Service | C14: 101/102 | D14: 79468.69043 | E14: 7344.941223 | F14: 86813.63165 | G14: =E14/D14 -> 0.09242559785 | H14: 122717.839 | I14: =E14 -> 7344.941223 | J14: =(+E14)/H14 -> 0.05985226994 | K14: =('[21]Pres & Prop Rev'!D46*[21]Exh3!E15)/1000 -> 46969.15564 | M14: =E14/(D14-K14) -> 0.2260014265 | O14: =D14-K14 -> 32499.53479 | P14: =I14/H14 -> 0.05985226994 | Q14: =#REF!/H14 -> 
A15: 2 | B15: Large General Service | C15: 111/112 | D15: 20145.48068 | E15: 393.4157572 | F15: 20538.89644 | G15: 0.01952873518 | H15: 38590.73451 | I15: =E15 -> 393.4157572 | J15: 0.01019456515 | K15: =('[21]Pres & Prop Rev'!E46*[21]Exh3!E19)/1000 -> 18143.07905 | M15: 0.196471952 | O15: 2002.401632 | P15: 0.01019456515 | Q15: =#REF!/H15 -> 
A16: 3 | B16: Interruptible Service | C16: 131/132 | D16: 216.98343 | E16: 8.574823885 | F16: 225.5582539 | G16: 0.03951833504 | H16: 472.20611 | I16: 8.574823885 | J16: 0.01815907017 | K16: =('[21]Pres & Prop Rev'!G46*[21]Exh3!E40)/1000 -> 375.3786108 | M16: -0.05413563621 | O16: -158.3951808 | P16: 0.01815907017 | Q16: =#REF!/H16 -> 
A17: 4 | B17: Transportation Service | C17: 146 | D17: 3580.860637 | E17: 330.9631852 | F17: 3911.823822 | G17: 0.09242559785 | H17: 3643.678327 | I17: 330.9631852 | J17: 0.09083216341 | K17: =('[21]Pres & Prop Rev'!H46*[21]Exh3!E49)/1000 -> 17.12491312 | M17: 0.09286973301 | O17: 3563.735723 | P17: 0.09083216341 | Q17: =#REF!/H17 -> 
A18: 5 | B18: Special Contracts | C18: 148 | D18: 1760.86369 | E18: 0 | F18: 1760.86369 | G18: 0 | H18: 1760.86369 | I18: 0 | J18: 0 | M18: 0 | O18: 1760.86369 | P18: 0 | Q18: =#REF!/H18 -> 
A19: 6 | B19: Total | D19: =SUM(D14:D18)-0.2 -> 105172.6789 | E19: =SUM(E14:E18) -> 8077.89499 | F19: =SUM(F14:F18) -> 113250.7739 | G19: 0.07680602108 | H19: =SUM(H14:H18)+1 -> 167186.3216 | I19: =SUM(I14:I18)-0.2 -> 8077.69499 | J19: 0.0483167218 | K19: =SUM(K14:K18) -> 65504.73821 | M19: 0.2036378712 | O19: 39667.94066 | P19: 0.04831552553 | Q19: =#REF!/H19 -> 
I20: =ROUND(I19-SUM(I14:I18),-1) -> 0 | J20: =ROUND(J19-SUM(J14:J18),0) -> 0
D22: =IF(Base1_Billing2=2,"Exhibit won't work until Base1_Billing2 range set to '1'","") -> 
A24: (1) Includes Purchase Adjustment Schedule 150; excludes all other rate adjustments.
A26: (2) Includes Schedule 150 (Purchase Gas Cost Adjustment), Schedule 155 (Gas Rate Adjustment),
A27: Schedule 191 (DSM Adjustment) and Schedule 192 (LIRAP Adjustment).
D29: =SUM(ROUND(D14:D18,0)) ->  | E29: =SUM(ROUND(E14:E18,0)) -> 8078 | F29: =SUM(ROUND(F14:F18,0)) -> 113252 | H29: =SUM(ROUND(H14:H18,0)) -> 167186 | J29: =SUM(ROUND(J14:J18,0)) -> 0
D30: =ROUND(D19,0)-D29 ->  | E30: =ROUND(E19,0)-E29 -> 0 | F30: =ROUND(F19,0)-F29 -> -1 | H30: =ROUND(H19,0)-H29 -> 0 | J30: =ROUND(J19,0)-J29 -> 0
G33: Rate Sch. | H33: Therms | I33: Sch 155 Rate | J33: Sch 155 Rate
G34: 112 | H34: 0 | I34: -0.01451 | J34: -0.00014 | K34: No 112's in test year
G35: 122 | H35: ='[21]Rev Runs CY'!O40 -> 665507 | I35: 0.00539 | J35: -0.00014

Sheet RCF (hidden)
A1: AVISTA UTILITIES
A2: REVENUE CONVERSION FACTOR
A3: WASHINGTON NATURAL GAS
A4: TWELVE MONTHS ENDED DECEMBER 31, 2019
A7: From UG-200901
A10: Description | C10: Factor
A12: Revenues | C12: 1
A14: Expense:
A15: Uncollectibles | C15: 0.003326
A17: Commission Fees | C17: 0.002
A19: Washington Excise Tax | C19: 0.038392
A21: Total Expense | C21: =C15+C17+C19 -> 0.043718
A23: Net Operating Income Before FIT | C23: =C12-C21 -> 0.956282
A25: Federal Income Tax @ 21% | C25: 0.20081922
A27: REVENUE CONVERSION FACTOR | C27: =C23-C25 -> 0.75546278
